Date Paid,Transaction Number,Amount,Supplier Name,Period,Expense Area,Cipfa(T),
10/08/2016,3837292,"1,373.68",REDACTED,201705,Environment and Place,Transport-Related Expenditure,
10/08/2016,3837298,"1,279.88",REDACTED,201705,Environment and Place,Transport-Related Expenditure,
10/08/2016,3837301,981.12,REDACTED,201705,Environment and Place,Transport-Related Expenditure,
19/08/2016,3837960,"2,660.00",REDACTED,201705,Environment and Place,Transport-Related Expenditure,
05/08/2016,3837078,"4,170.00",Star Technology Services Ltd,201705,Resources,Supplies & Services,
03/08/2016,3836277,787.5,Ace Coaches & Travel,201705,Environment and Place,Transport-Related Expenditure,
03/08/2016,3836281,"1,398.60",Ace Coaches & Travel,201705,Environment and Place,Transport-Related Expenditure,
03/08/2016,3836282,"1,624.00",Ace Coaches & Travel,201705,Environment and Place,Transport-Related Expenditure,
03/08/2016,3836781,"2,000.00",Activate Educational Ltd,201705,Schools,Employees,
25/08/2016,3838393,513.59,Advanced Legal Solutions Limited,201705,Communities,Supplies & Services,
03/08/2016,3837055,653.52,Complete Office Solutions (UK) Ltd,201705,Resources,Premises-Related Expenditure,
10/08/2016,3837450,540,Age Concern UK Hereford & Worcester,201705,Physical Disabilities,Supplies & Services,
10/08/2016,3837451,720,Age Concern UK Hereford & Worcester,201705,Physical Disabilities,Supplies & Services,
30/06/2016,3836989,"3,493.60",Alliance In Partnership,201705,Schools,Supplies & Services,
15/07/2016,3837938,"1,436.50",Alliance In Partnership,201705,Schools,Supplies & Services,
15/07/2016,3836381,"1,436.50",Alliance In Partnership,201705,Schools,Supplies & Services,
22/07/2016,3836839,543.85,Alliance In Partnership,201705,Schools,Supplies & Services,
03/08/2016,3836367,"1,778.55",Alliance In Partnership,201705,Schools,Supplies & Services,
03/08/2016,3836429,"1,288.00",Alliance In Partnership,201705,Schools,Supplies & Services,
03/08/2016,3836468,752.1,Alliance In Partnership,201705,Schools,Supplies & Services,
03/08/2016,3836477,"1,320.75",Alliance In Partnership,201705,Schools,Supplies & Services,
03/08/2016,3836478,704.25,Alliance In Partnership,201705,Schools,Supplies & Services,
03/08/2016,3836500,"1,973.25",Alliance In Partnership,201705,Schools,Supplies & Services,
05/08/2016,4691736,"1,271.60",Alliance In Partnership,201705,Schools,Supplies & Services,
10/08/2016,3835436,"2,101.00",Alliance In Partnership,201705,Schools,Supplies & Services,
10/08/2016,3837239,"1,467.40",Alliance In Partnership,201705,Schools,Supplies & Services,
10/08/2016,4691571,983.8,Alliance In Partnership,201705,Schools,Supplies & Services,
24/08/2016,3837493,430.65,Alliance In Partnership,201705,Schools,Supplies & Services,
24/08/2016,3837610,734.8,Alliance In Partnership,201705,Schools,Supplies & Services,
24/08/2016,3837939,"2,950.20",Alliance In Partnership,201705,Schools,Supplies & Services,
24/08/2016,3837940,543.85,Alliance In Partnership,201705,Schools,Supplies & Services,
24/08/2016,3835373,"1,647.80",Alliance In Partnership,201705,Schools,Supplies & Services,
24/08/2016,3836353,607.5,Alliance In Partnership,201705,Schools,Supplies & Services,
24/08/2016,3837476,715.5,Alliance In Partnership,201705,Schools,Supplies & Services,
24/08/2016,4691360,"2,263.80",Alliance In Partnership,201705,Schools,Supplies & Services,
24/08/2016,4691361,"1,014.20",Alliance In Partnership,201705,Schools,Supplies & Services,
31/08/2016,3838635,486.2,Alliance In Partnership,201705,Schools,Supplies & Services,
31/08/2016,3838642,521.2,Alliance In Partnership,201705,Schools,Supplies & Services,
31/08/2016,3837240,528,Alliance In Partnership,201705,Schools,Supplies & Services,
22/07/2016,3836839,763.15,Alliance In Partnership,201705,Schools,Suspense Accounts,
03/08/2016,3836552,"12,317.24",George Youngs Coaches Ltd,201705,Environment and Place,Transport-Related Expenditure,
10/08/2016,3837075,746.6,George Youngs Coaches Ltd,201705,Schools,Transport-Related Expenditure,
03/08/2016,3836677,"1,540.00",REDACTED,201705,Environment and Place,Transport-Related Expenditure,
03/08/2016,3836678,"1,568.00",REDACTED,201705,Environment and Place,Transport-Related Expenditure,
03/08/2016,3836679,"1,960.00",REDACTED,201705,Environment and Place,Transport-Related Expenditure,
03/08/2016,3836680,"1,960.00",REDACTED,201705,Environment and Place,Transport-Related Expenditure,
03/08/2016,3836681,"1,820.00",REDACTED,201705,Environment and Place,Transport-Related Expenditure,
03/08/2016,3836985,"1,960.00",REDACTED,201705,Environment and Place,Transport-Related Expenditure,
12/08/2016,3836999,"1,680.00",REDACTED,201705,Environment and Place,Transport-Related Expenditure,
12/08/2016,3837171,"1,890.00",REDACTED,201705,Environment and Place,Transport-Related Expenditure,
12/08/2016,3837336,"1,232.00",REDACTED,201705,Environment and Place,Transport-Related Expenditure,
31/08/2016,3838649,"1,140.00",B & H Cars,201705,Learning Disabilities,Transport-Related Expenditure,
31/08/2016,3838650,"1,444.00",B & H Cars,201705,Learning Disabilities,Transport-Related Expenditure,
31/08/2016,3838651,"1,140.00",B & H Cars,201705,Learning Disabilities,Transport-Related Expenditure,
31/08/2016,3838652,"1,292.00",B & H Cars,201705,Learning Disabilities,Transport-Related Expenditure,
12/08/2016,3835643,"3,364.90",Society County Treasurer,201705,Resources,Supplies & Services,
12/08/2016,3837524,625.2,Aquaid (Midlands & South Wales),201705,Schools,Supplies & Services,
24/08/2016,3838098,"3,955.00",Jacobs UK Ltd,201705,Environment and Place,Supplies & Services,
10/08/2016,3837387,489.16,Allstar Business Solutions Ltd (Arval),201705,Environment and Place,Transport-Related Expenditure,
17/08/2016,3837760,739.78,Allstar Business Solutions Ltd (Arval),201705,Environment and Place,Transport-Related Expenditure,
23/08/2016,2141461,649,Ashfield Park Primary School,201705,Children & Young People Capital,Capital Income,
24/08/2016,3838062,"8,679.34",Veolia Transport T/A Astons Coaches,201705,Environment and Place,Third Party Payments,
24/08/2016,3838064,579.52,Veolia Transport T/A Astons Coaches,201705,Environment and Place,Third Party Payments,
24/08/2016,3838081,760.04,Veolia Transport T/A Astons Coaches,201705,Environment and Place,Third Party Payments,
31/08/2016,3838437,"4,576.00",Veolia Transport T/A Astons Coaches,201705,Environment and Place,Third Party Payments,
12/08/2016,3837527,"5,560.00",B & B Services Ltd,201705,Housing & Independent Living Capital,Capital Expenditure,
12/08/2016,3837646,"3,814.50",B & B Services Ltd,201705,Housing & Independent Living Capital,Capital Expenditure,
19/08/2016,3838161,"4,779.50",B & B Services Ltd,201705,Housing & Independent Living Capital,Capital Expenditure,
31/08/2016,3838719,"6,305.00",B & B Services Ltd,201705,Housing & Independent Living Capital,Capital Expenditure,
03/08/2016,3836618,670,B Squared,201705,Schools,Supplies & Services,
19/08/2016,3837904,"1,067.52",Barrettine Environmental Health,201705,Environment and Place,Supplies & Services,
24/08/2016,3837552,468.45,Barrettine Environmental Health,201705,Environment and Place,Supplies & Services,
12/08/2016,3837473,"2,580.00",REDACTED,201705,Environment and Place,Supplies & Services,
24/08/2016,3838300,"1,470.00",REDACTED,201705,Environment and Place,Supplies & Services,
05/08/2016,4691670,"4,083.62",Bertram Trading Ltd,201705,Communities,Supplies & Services,
10/08/2016,4691685,"2,121.40",Bertram Trading Ltd,201705,Communities,Supplies & Services,
10/08/2016,4691869,775.04,Bertram Trading Ltd,201705,Communities,Supplies & Services,
10/08/2016,4691833,489.5,Besecure Protection Systems,201705,Schools,Premises-Related Expenditure,
31/08/2016,3838628,723.69,Bespoke Cleaning Services,201705,Schools,Premises-Related Expenditure,
31/08/2016,3838629,"1,052.76",Bespoke Cleaning Services,201705,Schools,Premises-Related Expenditure,
31/08/2016,3838639,"3,686.79",Bespoke Cleaning Services,201705,Schools,Premises-Related Expenditure,
03/08/2016,3836334,"2,090.00",Blue Line Taxis,201705,Environment and Place,Transport-Related Expenditure,
03/08/2016,3836335,"1,520.00",Blue Line Taxis,201705,Environment and Place,Transport-Related Expenditure,
03/08/2016,3836575,"2,280.00",Blue Line Taxis,201705,Environment and Place,Transport-Related Expenditure,
03/08/2016,3836577,"1,663.00",Blue Line Taxis,201705,Environment and Place,Transport-Related Expenditure,
03/08/2016,3836581,494,Blue Line Taxis,201705,Environment and Place,Transport-Related Expenditure,
03/08/2016,3836717,"3,610.00",Blue Line Taxis,201705,Environment and Place,Transport-Related Expenditure,
03/08/2016,3836718,"3,040.02",Blue Line Taxis,201705,Environment and Place,Transport-Related Expenditure,
03/08/2016,3836719,"1,900.00",Blue Line Taxis,201705,Environment and Place,Transport-Related Expenditure,
03/08/2016,3836721,"2,010.00",Blue Line Taxis,201705,Environment and Place,Transport-Related Expenditure,
03/08/2016,3836722,"2,660.00",Blue Line Taxis,201705,Environment and Place,Transport-Related Expenditure,
03/08/2016,3836723,"2,470.00",Blue Line Taxis,201705,Environment and Place,Transport-Related Expenditure,
03/08/2016,3836725,"3,040.00",Blue Line Taxis,201705,Environment and Place,Transport-Related Expenditure,
03/08/2016,3836727,"2,089.99",Blue Line Taxis,201705,Environment and Place,Transport-Related Expenditure,
03/08/2016,3836728,"1,406.00",Blue Line Taxis,201705,Environment and Place,Transport-Related Expenditure,
03/08/2016,3836729,"1,519.97",Blue Line Taxis,201705,Environment and Place,Transport-Related Expenditure,
03/08/2016,3836851,"1,368.00",Blue Line Taxis,201705,Environment and Place,Transport-Related Expenditure,
03/08/2016,3836852,"2,480.00",Blue Line Taxis,201705,Environment and Place,Transport-Related Expenditure,
03/08/2016,3836853,"1,651.00",Blue Line Taxis,201705,Environment and Place,Transport-Related Expenditure,
10/08/2016,3837158,551,Blue Line Taxis,201705,Environment and Place,Transport-Related Expenditure,
10/08/2016,3837297,"1,484.96",Blue Line Taxis,201705,Environment and Place,Transport-Related Expenditure,
10/08/2016,3837306,"1,120.00",Blue Line Taxis,201705,Environment and Place,Transport-Related Expenditure,
10/08/2016,3837324,435,Blue Line Taxis,201705,Environment and Place,Transport-Related Expenditure,
10/08/2016,3837335,740,Blue Line Taxis,201705,Environment and Place,Transport-Related Expenditure,
10/08/2016,3837360,644,Blue Line Taxis,201705,Environment and Place,Transport-Related Expenditure,
10/08/2016,3837361,784,Blue Line Taxis,201705,Environment and Place,Transport-Related Expenditure,
10/08/2016,3837364,"1,540.00",Blue Line Taxis,201705,Environment and Place,Transport-Related Expenditure,
10/08/2016,3837365,"2,560.00",Blue Line Taxis,201705,Environment and Place,Transport-Related Expenditure,
10/08/2016,3837366,"1,860.00",Blue Line Taxis,201705,Environment and Place,Transport-Related Expenditure,
10/08/2016,3837367,574,Blue Line Taxis,201705,Environment and Place,Transport-Related Expenditure,
10/08/2016,3837375,"1,400.00",Blue Line Taxis,201705,Environment and Place,Transport-Related Expenditure,
10/08/2016,3837376,"1,890.00",Blue Line Taxis,201705,Environment and Place,Transport-Related Expenditure,
10/08/2016,3837381,"1,460.00",Blue Line Taxis,201705,Environment and Place,Transport-Related Expenditure,
10/08/2016,3837383,"1,221.97",Blue Line Taxis,201705,Environment and Place,Transport-Related Expenditure,
10/08/2016,3837384,"1,260.00",Blue Line Taxis,201705,Environment and Place,Transport-Related Expenditure,
10/08/2016,3837386,570,Blue Line Taxis,201705,Environment and Place,Transport-Related Expenditure,
10/08/2016,3837388,"1,035.99",Blue Line Taxis,201705,Environment and Place,Transport-Related Expenditure,
12/08/2016,3832987,"1,520.00",Blue Line Taxis,201705,Environment and Place,Transport-Related Expenditure,
12/08/2016,3837374,"1,394.00",Blue Line Taxis,201705,Environment and Place,Transport-Related Expenditure,
12/08/2016,3837377,"1,485.00",Blue Line Taxis,201705,Environment and Place,Transport-Related Expenditure,
12/08/2016,3837378,"1,840.00",Blue Line Taxis,201705,Environment and Place,Transport-Related Expenditure,
12/08/2016,3837379,"2,240.00",Blue Line Taxis,201705,Environment and Place,Transport-Related Expenditure,
17/08/2016,3837843,"2,660.00",Blue Line Taxis,201705,Environment and Place,Transport-Related Expenditure,
17/08/2016,3837380,"1,008.00",Blue Line Taxis,201705,Environment and Place,Transport-Related Expenditure,
19/08/2016,3837876,788,Blue Line Taxis,201705,Environment and Place,Transport-Related Expenditure,
31/08/2016,3838433,615,Blue Line Taxis,201705,Environment and Place,Transport-Related Expenditure,
31/08/2016,3838648,"2,240.00",Blue Line Taxis,201705,Environment and Place,Transport-Related Expenditure,
03/08/2016,3836336,"1,064.00",Blue Line Taxis,201705,Learning Disabilities,Transport-Related Expenditure,
25/08/2016,3838427,"1,064.00",Blue Line Taxis,201705,Learning Disabilities,Transport-Related Expenditure,
12/08/2016,3837478,"1,170.00",Blue Line Taxis,201705,Safeguarding and Family Support,Transport-Related Expenditure,
12/08/2016,3837479,"1,410.00",Blue Line Taxis,201705,Safeguarding and Family Support,Transport-Related Expenditure,
05/08/2016,4691687,610,Bookpoint Ltd,201705,Schools,Supplies & Services,
24/08/2016,3838138,990,Boss,201705,Resources,Premises-Related Expenditure,
03/08/2016,3835465,746.52,Boss,201705,Schools,Supplies & Services,
05/08/2016,4691699,834,Boss,201705,Schools,Supplies & Services,
05/08/2016,4691700,631.57,Boss,201705,Schools,Supplies & Services,
05/08/2016,4691701,"2,302.54",Boss,201705,Schools,Supplies & Services,
05/08/2016,4691704,864.21,Boss,201705,Schools,Supplies & Services,
31/08/2016,3838588,956.37,Boss,201705,Schools,Supplies & Services,
31/08/2016,3838632,537.1,Boss,201705,Schools,Supplies & Services,
31/08/2016,3838671,548.75,Boss,201705,Schools,Supplies & Services,
17/08/2016,3837661,"1,062.50",REDACTED,201705,Schools,Premises-Related Expenditure,
03/08/2016,3835705,"106,834.39",Speller Metcalfe Malvern Ltd,201705,Resources Capital,Capital Expenditure,
17/08/2016,3835704,"21,499.00",Speller Metcalfe Malvern Ltd,201705,Resources Capital,Capital Expenditure,
31/08/2016,3838644,"198,412.36",Speller Metcalfe Malvern Ltd,201705,Resources Capital,Capital Expenditure,
17/08/2016,3837530,"83,229.29",British Telecommunications Plc (OPENREACH CIS),201705,Commissioning Capital,Capital Expenditure,
31/08/2016,3838514,975,Bromyard & Winslow Town Council,201705,Environment and Place,Third Party Payments,
03/08/2016,3836676,"1,586.00",ADASS,201705,Director and Management,Supplies & Services,
12/08/2016,3834749,458.9,BT PLC,201705,Communities,Supplies & Services,
03/08/2016,3836699,"3,000.00",Buchanans Coaches,201705,Environment and Place,Transport-Related Expenditure,
03/08/2016,3836715,"1,867.97",Buchanans Coaches,201705,Environment and Place,Transport-Related Expenditure,
10/08/2016,3837135,910,Enterprise Rent A Car UK T/A Flex E Rent,201705,Environment and Place,Transport-Related Expenditure,
16/08/2016,2138851,"1,155.57",Ross Country Cars (Standing Order),201705,Environment and Place,Supplies & Services,
16/08/2016,2138849,750.58,Hay & District Dial a Ride,201705,Environment and Place,Supplies & Services,
16/08/2016,4691533,700.32,G4S Cash Service (Direct Debit),201705,Resources,Third Party Payments,
17/08/2016,3837569,"10,952.32",C J Bayliss (Hereford) Ltd,201705,Schools Devolved Capital,Capital Expenditure,
25/08/2016,3838136,"17,882.06",C J Bayliss (Hereford) Ltd,201705,Schools Devolved Capital,Capital Expenditure,
01/08/2016,4691526,"5,059.56",Allpay Ltd  (Direct Debit only),201705,Resources,Supplies & Services,
01/09/2016,3838021,"5,248.96",Allpay Ltd  (Direct Debit only),201705,Resources,Supplies & Services,
31/08/2016,3838613,750,Martin Suff Electrical Services,201705,Schools,Premises-Related Expenditure,
25/08/2016,3838482,584.93,Calor Gas Ltd,201705,Schools,Premises-Related Expenditure,
25/08/2016,3838502,805.7,Cambridge University Press,201705,Schools,Supplies & Services,
10/08/2016,3837357,"2,800.00",Capita Business Services Ltd,201705,Communities,Support Services,
01/08/2016,4691538,"4,591.02",Capita Business Services Ltd (Direct Debit),201705,Resources,Supplies & Services,
26/08/2016,3838025,"5,138.83",Capita Business Services Ltd (Direct Debit),201705,Resources,Supplies & Services,
03/08/2016,4691576,"1,175.69",Hereford Market Auctioneers,201705,Environment and Place,Premises-Related Expenditure,
12/08/2016,3837412,535,Prees C E Primary School,201705,Education and Commissioning,Support Services,
24/08/2016,3838084,"1,445.00",Cipfa Business Ltd,201705,Resources,Supplies & Services,
25/08/2016,3838370,869.96,PEAC (UK) Ltd,201705,Schools,Supplies & Services,
17/08/2016,3837560,942.79,Clearview Cleaning Services,201705,Schools,Premises-Related Expenditure,
10/08/2016,3837438,"1,400.00",George Day & Son,201705,Environment and Place,Supplies & Services,
10/08/2016,3837291,439.99,Climb On Bikes,201705,Holding Codes,Holding Codes,
31/08/2016,3838430,987.36,Climb On Bikes,201705,Holding Codes,Holding Codes,
19/08/2016,3838152,857.5,Colwall Parish Council,201705,Environment and Place,Third Party Payments,
03/08/2016,3836995,665.28,CVA Ledbury & District,201705,Environment and Place,Transport-Related Expenditure,
03/08/2016,3836998,"1,399.50",CVA Ledbury & District,201705,Environment and Place,Transport-Related Expenditure,
03/08/2016,3836105,520,Coordination Group Publications Ltd,201705,Schools,Supplies & Services,
12/08/2016,3837427,"10,541.66",Crossroads Care-Forest Of Dean & Hfds,201705,Education and Commissioning,Third Party Payments,
10/08/2016,3837405,500,Chaingang Cycles,201705,Environment and Place,Supplies & Services,
10/08/2016,3837452,"80,478.50",2Gether NHS Foundation Trust,201705,Commissioning Adults,Third Party Payments,
23/08/2016,2141647,458.33,Ashperton Primary Academy,201705,Central Childrens Directorate Costs,Support Services,
23/08/2016,2141722,458.33,Ashperton Primary Academy,201705,Central Childrens Directorate Costs,Support Services,
23/08/2016,2141787,458.33,Ashperton Primary Academy,201705,Central Childrens Directorate Costs,Support Services,
23/08/2016,2141788,458.33,Ashperton Primary Academy,201705,Central Childrens Directorate Costs,Support Services,
23/08/2016,2141794,458.33,Ashperton Primary Academy,201705,Central Childrens Directorate Costs,Support Services,
10/08/2016,3836609,"2,925.48",D & D Network Services Ltd,201705,Schools,Supplies & Services,
10/08/2016,4691820,"3,250.00",D & D Network Services Ltd,201705,Schools,Supplies & Services,
10/08/2016,4691856,"7,693.86",D & D Network Services Ltd,201705,Schools,Supplies & Services,
12/08/2016,3837513,600,D & D Network Services Ltd,201705,Schools,Supplies & Services,
17/08/2016,3836449,"1,126.50",D & D Network Services Ltd,201705,Schools,Supplies & Services,
25/08/2016,3838484,"1,140.00",D & D Network Services Ltd,201705,Schools,Supplies & Services,
31/08/2016,3838686,500,Telford & Wrekin Council,201705,Communities,Supplies & Services,
23/08/2016,2141667,458.33,Herefordshire Marches Federation-Kings Caple,201705,Central Childrens Directorate Costs,Support Services,
17/08/2016,3836835,492,Ocean Design Storage Solutions Ltd,201705,Communities,Supplies & Services,
19/08/2016,3837900,750,A C Electrics,201705,Resources,Premises-Related Expenditure,
25/08/2016,3838477,467.49,Dell Corporation Ltd,201705,Schools,Supplies & Services,
24/08/2016,3838226,622.14,Neopost Ltd,201705,Communities,Supplies & Services,
19/08/2016,3838112,"1,000.00",Neopost Ltd,201705,Resources,Supplies & Services,
19/08/2016,3838113,"1,000.00",Neopost Ltd,201705,Resources,Supplies & Services,
19/08/2016,3838114,"1,000.00",Neopost Ltd,201705,Resources,Supplies & Services,
19/08/2016,3838115,"4,000.00",Neopost Ltd,201705,Resources,Supplies & Services,
03/08/2016,3836486,"2,578.75",Falcon Document Solutions Limited,201705,Schools,Supplies & Services,
01/07/2016,4691561,"19,467.50",Enviroment Agency,201705,Resources,Third Party Payments,
01/08/2016,4691566,"19,647.50",Enviroment Agency,201705,Resources,Third Party Payments,
16/08/2016,2138848,"1,399.87",Dore Community Transport,201705,Environment and Place,Supplies & Services,
23/08/2016,2141732,458.33,Brockhampton Primary School (Academy),201705,Central Childrens Directorate Costs,Support Services,
03/08/2016,4691474,"3,475.34",REDACTED,201705,Communities,Supplies & Services,
31/08/2016,3838297,"3,310.32",REDACTED,201705,Communities,Supplies & Services,
10/08/2016,4691788,"3,500.00",REDACTED,201705,Central Childrens Directorate Costs,Supplies & Services,
10/08/2016,4691805,595,REDACTED,201705,Communities,Supplies & Services,
17/08/2016,3837546,604,REDACTED,201705,Communities,Supplies & Services,
31/08/2016,3838464,"16,878.33",DRM (Bromyard) Ltd,201705,Environment and Place,Third Party Payments,
03/08/2016,3836566,"23,433.48",DRM (Bromyard) Ltd,201705,Environment and Place,Transport-Related Expenditure,
10/08/2016,3837299,765,DRM (Bromyard) Ltd,201705,Environment and Place,Transport-Related Expenditure,
17/08/2016,3837821,"27,251.58",Duchy Of Cornwall,201705,Communities Capital,Capital Expenditure,
17/08/2016,3837581,450,Dudley Metropolitan Borough,201705,Communities,Supplies & Services,
31/08/2016,3838599,500,Dudley Metropolitan Borough,201705,Communities,Supplies & Services,
03/08/2016,3836538,"1,280.00",Dukes Travel Ltd,201705,Environment and Place,Transport-Related Expenditure,
03/08/2016,3836857,"3,552.83",DX Network Services Ltd,201705,Communities,Supplies & Services,
24/08/2016,3838310,685.47,DX Network Services Ltd,201705,Communities,Supplies & Services,
03/08/2016,3835944,"1,027.79",Ebuyer (Uk) Ltd,201705,Schools,Supplies & Services,
03/08/2016,3837054,980,ECHO,201705,Education and Commissioning,Supplies & Services,
03/08/2016,4691477,843.75,Education City Ltd,201705,Schools,Supplies & Services,
17/08/2016,3837695,450,Edutech Solutions Ltd,201705,Schools,Supplies & Services,
25/08/2016,3838496,450,Edutech Solutions Ltd,201705,Schools,Supplies & Services,
12/08/2016,3837211,"4,629.00",Edutech Solutions Ltd,201705,Schools Devolved Capital,Capital Expenditure,
03/08/2016,4691613,660,Ludlow & District RDA,201705,Schools,Supplies & Services,
12/08/2016,3837421,440,Elklan,201705,Education and Commissioning,Supplies & Services,
10/08/2016,3837131,"1,790.00",Environmental Management Solutions Ltd,201705,Growth Capital,Capital Expenditure,
12/08/2016,3836875,"1,089.80",Environmental Scientifics Group Ltd,201705,Environment and Place,Supplies & Services,
12/08/2016,3837159,"1,036.31",Environmental Scientifics Group Ltd,201705,Environment and Place,Supplies & Services,
03/08/2016,3836503,999,Discovery Education Europe Ltd,201705,Schools,Supplies & Services,
03/08/2016,3836930,"1,016.50",Discovery Education Europe Ltd,201705,Schools,Supplies & Services,
03/08/2016,4691488,723.55,Discovery Education Europe Ltd,201705,Schools,Supplies & Services,
31/08/2016,3838679,"1,535.35",Discovery Education Europe Ltd,201705,Schools,Supplies & Services,
03/08/2016,3836949,700,Falconry Services,201705,Environment and Place,Premises-Related Expenditure,
19/08/2016,3837863,700,Falconry Services,201705,Environment and Place,Premises-Related Expenditure,
03/08/2016,3836534,"4,833.33",Festival Housing Group,201705,Physical Disabilities,Third Party Payments,
31/08/2016,3838581,"4,833.33",Festival Housing Group,201705,Physical Disabilities,Third Party Payments,
10/08/2016,3837422,"1,600.00",Torfaen County Borough,201705,Education and Commissioning,Support Services,
10/08/2016,3835453,647.54,First Midland Red Bus Ltd,201705,Environment and Place,Third Party Payments,
24/08/2016,3838263,"343,094.97",Fcc Environment Services (uk) Ltd,201705,Environment and Place,Third Party Payments,
19/08/2016,3837948,990,Alere  Forensics,201705,Communities,Supplies & Services,
05/08/2016,3836945,"1,447.30",Killgerm Chemicals Ltd,201705,Environment and Place,Supplies & Services,
10/08/2016,3837290,"1,320.00",Frome Private Hire Cars,201705,Environment and Place,Transport-Related Expenditure,
24/08/2016,3838374,603.45,Full House Furniture & Recycling Service Ltd,201705,Environment and Place,Third Party Payments,
25/08/2016,3838473,833,Furniture @ Work Ltd,201705,Schools,Premises-Related Expenditure,
05/08/2016,4691711,"2,312.15",Kingsland Millennium Green Trust,201705,Commissioning Capital,Capital Income,
12/08/2016,3837195,"16,000.00",GB Liners,201705,Communities,Premises-Related Expenditure,
12/08/2016,3837196,"17,500.00",GB Liners,201705,Communities,Premises-Related Expenditure,
19/08/2016,3838053,650,Harrison Clark Rickerbys Ltd,201705,Commissioning Capital,Capital Expenditure,
24/08/2016,3838220,"2,150.00",Teleshore UK Ltd,201705,Environment and Place,Supplies & Services,
02/09/2016,3838738,450,Gleamclean Cleaning Services,201705,Schools,Premises-Related Expenditure,
10/08/2016,3837236,"3,124.00",Goodrich School Meals Ass.,201705,Schools,Supplies & Services,
10/08/2016,3837237,589.6,Goodrich School Meals Ass.,201705,Schools,Supplies & Services,
17/08/2016,3837119,524.98,REDACTED,201705,Environment and Place,Supplies & Services,
24/08/2016,3838260,497.49,REDACTED,201705,Environment and Place,Supplies & Services,
24/08/2016,3838261,553.42,REDACTED,201705,Environment and Place,Supplies & Services,
25/08/2016,3838222,450.5,Alert-iT Care Alarms,201705,Transformation and safeguarding,Supplies & Services,
31/08/2016,3838609,"1,225.50",GL Education Group Ltd,201705,Schools,Supplies & Services,
03/08/2016,3836709,435,RoSPA,201705,Environment and Place,Supplies & Services,
24/08/2016,3838056,590.9,H & H Motors,201705,Environment and Place,Third Party Payments,
24/08/2016,3838058,476,H & H Motors,201705,Environment and Place,Third Party Payments,
24/08/2016,3838277,"1,860.00",H & H Motors,201705,Environment and Place,Transport-Related Expenditure,
24/08/2016,3838279,"1,492.50",H & H Motors,201705,Environment and Place,Transport-Related Expenditure,
24/08/2016,3838282,652.35,H & H Motors,201705,Environment and Place,Transport-Related Expenditure,
31/08/2016,3838653,"2,385.00",H & H Motors,201705,Environment and Place,Transport-Related Expenditure,
31/08/2016,3838654,"2,340.00",H & H Motors,201705,Environment and Place,Transport-Related Expenditure,
31/08/2016,3838655,"2,226.00",H & H Motors,201705,Environment and Place,Transport-Related Expenditure,
31/08/2016,3838656,"1,375.00",H & H Motors,201705,Environment and Place,Transport-Related Expenditure,
31/08/2016,3838551,575,H & H Motors,201705,Schools,Transport-Related Expenditure,
31/08/2016,3838618,500,H Mason & Son Ltd,201705,Schools,Premises-Related Expenditure,
24/08/2016,3838227,"1,156.41",Halarose Ltd,201705,Communities,Supplies & Services,
24/08/2016,3838170,"7,550.00",Halo Leisure Services Ltd,201705,Communities,Premises-Related Expenditure,
24/08/2016,3838179,420,Halo Leisure Services Ltd,201705,Communities,Premises-Related Expenditure,
24/08/2016,3838180,420,Halo Leisure Services Ltd,201705,Communities,Premises-Related Expenditure,
24/08/2016,3838186,420,Halo Leisure Services Ltd,201705,Communities,Premises-Related Expenditure,
24/08/2016,3838187,420,Halo Leisure Services Ltd,201705,Communities,Premises-Related Expenditure,
10/08/2016,3837426,740,Halo Leisure Services Ltd,201705,Education and Commissioning,Supplies & Services,
03/08/2016,4691591,"1,165.00",Halo Leisure Services Ltd,201705,Schools,Supplies & Services,
05/08/2016,4691689,"1,410.75",Halo Leisure Services Ltd,201705,Schools,Supplies & Services,
17/08/2016,3835547,875,Hays Specialist Recruitment Ltd,201705,Environment and Place,Employees,
03/08/2016,3836654,"2,222.20",Hays Specialist Recruitment Ltd,201705,Environment and Place,Third Party Payments,
03/08/2016,3836655,"1,666.65",Hays Specialist Recruitment Ltd,201705,Environment and Place,Third Party Payments,
03/08/2016,3836656,"2,777.75",Hays Specialist Recruitment Ltd,201705,Environment and Place,Third Party Payments,
03/08/2016,3836675,"2,222.20",Hays Specialist Recruitment Ltd,201705,Environment and Place,Third Party Payments,
17/08/2016,4691871,"1,111.10",Hays Specialist Recruitment Ltd,201705,Environment and Place,Third Party Payments,
17/08/2016,4691873,"2,222.20",Hays Specialist Recruitment Ltd,201705,Environment and Place,Third Party Payments,
17/08/2016,4691874,"2,222.20",Hays Specialist Recruitment Ltd,201705,Environment and Place,Third Party Payments,
17/08/2016,4691875,"2,222.20",Hays Specialist Recruitment Ltd,201705,Environment and Place,Third Party Payments,
19/08/2016,3836543,"24,165.50",Herdman Coaches Ltd,201705,Environment and Place,Transport-Related Expenditure,
15/08/2016,3837766,"528,606.52",Hereford & Worc Fire & Rescue Service,201705,Collection Fund,Collection Fund Accounts,
01/08/2016,4691560,"38,264.00",Hereford & Worc Fire & Rescue Service,201705,Consolidated Revenue Account,Supplies & Services,
05/08/2016,3836826,"1,050.00",Wye Valley NHS Trust,201705,Adults Operations,Employees,
03/08/2016,4691636,"4,421.34",Wye Valley NHS Trust,201705,Communities,Supplies & Services,
24/08/2016,3837944,"3,963.96",Wye Valley NHS Trust,201705,Communities,Supplies & Services,
12/08/2016,3837161,"1,000.00",Wye Valley NHS Trust,201705,Public Health,Employees,
16/08/2016,2138853,"42,778.00",Wye Valley NHS Trust,201705,Public Health,Third Party Payments,
16/08/2016,2138855,"196,315.00",Wye Valley NHS Trust,201705,Public Health,Third Party Payments,
03/08/2016,3836695,"3,395.00",Wye Valley NHS Trust,201705,Resources,Third Party Payments,
17/08/2016,3837549,442.62,Hfd Industrial Supply Co Ltd / Hfd Tool Hire,201705,Environment and Place,Supplies & Services,
10/08/2016,3837417,"3,359.00",Hereford Mobility Centre,201705,Housing & Independent Living Capital,Capital Expenditure,
19/08/2016,3837929,"2,125.00",Hereford Pedicabs Ltd,201705,Communities,Supplies & Services,
24/08/2016,3838128,"14,742.97",Herefordshire & Ludlow College,201705,Education and Commissioning,Supplies & Services,
19/08/2016,3837958,"1,898.00",Herefordshire Group Training Assoc Ltd,201705,Resources,Supplies & Services,
10/08/2016,3837454,"35,000.00",Herefordshire Housing Ltd,201705,Commissioning Adults,Third Party Payments,
03/08/2016,3835452,420,Herefordshire Housing Ltd,201705,Education and Commissioning,Supplies & Services,
10/08/2016,3836972,910,Herefordshire Housing Ltd,201705,Education and Commissioning,Supplies & Services,
31/08/2016,3838453,"1,144.50",Herefordshire Housing Ltd,201705,Education and Commissioning,Supplies & Services,
31/08/2016,3838454,"1,190.00",Herefordshire Housing Ltd,201705,Education and Commissioning,Supplies & Services,
10/08/2016,3837453,"2,773.68",Herefordshire Housing Ltd,201705,Transformation and safeguarding,Supplies & Services,
31/08/2016,3838539,"2,797.20",Herefordshire Housing Ltd,201705,Transformation and safeguarding,Supplies & Services,
17/08/2016,3837726,"9,118.46",Herefordshire Vision Links,201705,Commissioning Adults,Supplies & Services,
17/08/2016,3837727,"9,118.46",Herefordshire Vision Links,201705,Commissioning Adults,Supplies & Services,
17/08/2016,3837728,"9,118.46",Herefordshire Vision Links,201705,Commissioning Adults,Supplies & Services,
03/08/2016,3836535,"36,000.00",HVOSS,201705,Commissioning Adults,Third Party Payments,
16/08/2016,2138850,"2,591.10",HVOSS,201705,Environment and Place,Supplies & Services,
12/08/2016,3836494,567.5,HVOSS,201705,Learning Disabilities,Transport-Related Expenditure,
17/08/2016,3830703,606.2,HVOSS,201705,Learning Disabilities,Transport-Related Expenditure,
19/08/2016,3837961,590.9,HVOSS,201705,Learning Disabilities,Transport-Related Expenditure,
10/08/2016,3837389,620.01,High Town Radio Taxi Group,201705,Environment and Place,Transport-Related Expenditure,
12/08/2016,3837514,968.98,Highground Maintenance Limited,201705,Schools,Premises-Related Expenditure,
03/08/2016,4691486,809.8,REDACTED,201705,Education and Commissioning,Support Services,
19/08/2016,3838055,"1,620.00",HM Courts & Tribunals Service,201705,Resources,Supplies & Services,
24/08/2016,3838294,980,Hope For Children & Their Families Ltd,201705,Education and Commissioning,Supplies & Services,
03/08/2016,3837003,"1,607.10",I & S Coaches,201705,Environment and Place,Transport-Related Expenditure,
03/08/2016,3835954,614.98,IDN Supplies Ltd,201705,Schools,Supplies & Services,
17/08/2016,3837829,"3,100.00",Young Enterprise,201705,Growth,Transfer Payments,
17/08/2016,3837557,"1,150.00",Image Makers,201705,Communities,Third Party Payments,
19/08/2016,3837921,"41,866.40",Insight Direct (UK) Ltd,201705,Resources,Supplies & Services,
02/09/2016,3838767,523.33,Insight Direct (UK) Ltd,201705,Resources,Supplies & Services,
17/08/2016,3837845,"185,696.72",Insight Direct (UK) Ltd,201705,Resources Capital,Capital Expenditure,
17/08/2016,3837847,"185,696.72",Insight Direct (UK) Ltd,201705,Resources Capital,Capital Expenditure,
17/08/2016,3837120,"24,571.21",Insight Direct (UK) Ltd,201705,Resources Capital,Capital Expenditure,
02/09/2016,3838766,"6,700.11",Insight Direct (UK) Ltd,201705,Resources Capital,Capital Expenditure,
17/08/2016,4691789,"584,623.67",Integral UK Ltd,201705,Holding Codes,Holding Codes,
25/08/2016,3838380,"1,155.00",J P Catering,201705,Schools,Supplies & Services,
19/08/2016,3837928,757.05,Marches Counselling Service,201705,Public Health,Transfer Payments,
12/08/2016,3837203,545,West Ent,201705,Communities,Supplies & Services,
31/08/2016,3838561,533,West Ent,201705,Resources,Premises-Related Expenditure,
03/08/2016,3836550,"1,680.00",JMC Monmouth Ltd,201705,Environment and Place,Transport-Related Expenditure,
03/08/2016,3836556,700,JMC Monmouth Ltd,201705,Environment and Place,Transport-Related Expenditure,
03/08/2016,3836683,"1,960.00",JMC Monmouth Ltd,201705,Environment and Place,Transport-Related Expenditure,
03/08/2016,3836684,"2,223.00",JMC Monmouth Ltd,201705,Environment and Place,Transport-Related Expenditure,
03/08/2016,3836714,"1,235.00",JMC Monmouth Ltd,201705,Environment and Place,Transport-Related Expenditure,
10/08/2016,3837325,"9,239.99",JMC Monmouth Ltd,201705,Environment and Place,Transport-Related Expenditure,
03/08/2016,3836992,"1,939.99",JMC Monmouth Ltd,201705,Learning Disabilities,Transport-Related Expenditure,
10/08/2016,3836993,"1,258.08",JMC Monmouth Ltd,201705,Learning Disabilities,Transport-Related Expenditure,
12/08/2016,3830934,"1,258.08",JMC Monmouth Ltd,201705,Learning Disabilities,Transport-Related Expenditure,
24/08/2016,3838082,"1,330.00",JMP Consultants Ltd,201705,Environment and Place,Third Party Payments,
03/08/2016,3836214,"4,624.00",JMP Consultants Ltd,201705,Growth,Supplies & Services,
31/08/2016,3837918,"4,201.40",J & W Kostorz Ltd,201705,Housing & Independent Living Capital,Capital Expenditure,
31/08/2016,3838718,"3,211.08",J & W Kostorz Ltd,201705,Housing & Independent Living Capital,Capital Expenditure,
23/08/2016,2141488,458.33,John Kyrle High School,201705,Central Childrens Directorate Costs,Support Services,
23/08/2016,2141489,458.33,John Kyrle High School,201705,Central Childrens Directorate Costs,Support Services,
23/08/2016,2141742,719.17,John Kyrle High School,201705,Central Childrens Directorate Costs,Support Services,
23/08/2016,2141743,458.33,John Kyrle High School,201705,Central Childrens Directorate Costs,Support Services,
23/08/2016,2141606,458.33,John Masefield High School (Academy),201705,Central Childrens Directorate Costs,Support Services,
23/08/2016,2141701,458.33,John Masefield High School (Academy),201705,Central Childrens Directorate Costs,Support Services,
23/08/2016,2141731,458.33,John Masefield High School (Academy),201705,Central Childrens Directorate Costs,Support Services,
23/08/2016,2141762,458.33,John Masefield High School (Academy),201705,Central Childrens Directorate Costs,Support Services,
23/08/2016,2141650,458.33,Herefordshire Marches Federation-Lord Scudamore,201705,Central Childrens Directorate Costs,Support Services,
23/08/2016,2141804,458.33,Herefordshire Marches Federation-Lord Scudamore,201705,Central Childrens Directorate Costs,Support Services,
24/08/2016,3838314,500,Herefordshire Marches Federation-Lord Scudamore,201705,Education and Commissioning,Transfer Payments,
23/08/2016,2141636,458.33,Kingstone High School (Academy),201705,Central Childrens Directorate Costs,Support Services,
10/08/2016,3837012,965.3,REDACTED,201705,Environment and Place,Transport-Related Expenditure,
12/08/2016,3837136,"2,760.12",REDACTED,201705,Environment and Place,Transport-Related Expenditure,
03/08/2016,3836369,592.85,REDACTED,201705,Schools,Supplies & Services,
10/08/2016,3837244,552.99,REDACTED,201705,Schools,Supplies & Services,
10/08/2016,3837045,"23,155.76",Bevan Brittan LLP,201705,Communities,Supplies & Services,
10/08/2016,2137906,560,Kingsland School Imprest,201705,Schools,Employees,
10/08/2016,2137906,"2,824.41",Kingsland School Imprest,201705,Schools,Supplies & Services,
23/08/2016,2141805,458.33,Kingstone & Thruxton Primary School (Academy),201705,Central Childrens Directorate Costs,Support Services,
10/08/2016,4691800,790.5,Kinnersley & District Gpc,201705,Environment and Place,Third Party Payments,
08/08/2016,4691640,685,Land Registry ## Direct Debit Account ##,201705,Communities,Supplies & Services,
03/08/2016,3836912,"1,294.99",ILX Group plc,201705,Safeguarding and Family Support,Supplies & Services,
03/08/2016,3836278,973,Leominster Taxis & Travel,201705,Environment and Place,Transport-Related Expenditure,
03/08/2016,3836279,700,Leominster Taxis & Travel,201705,Environment and Place,Transport-Related Expenditure,
03/08/2016,3836319,"1,330.00",Leominster Taxis & Travel,201705,Environment and Place,Transport-Related Expenditure,
03/08/2016,3836547,"2,745.00",Leominster Taxis & Travel,201705,Environment and Place,Transport-Related Expenditure,
12/08/2016,4691866,"98,310.30",Livability,201705,Physical Disabilities,Third Party Payments,
31/08/2016,3838533,"2,206.00",Longtown Group Parish Council,201705,Environment and Place,Third Party Payments,
03/08/2016,3836223,531.41,Lord Combustion Services Ltd,201705,Schools,Premises-Related Expenditure,
24/08/2016,3838352,421.19,Lord Combustion Services Ltd,201705,Schools,Premises-Related Expenditure,
24/08/2016,3838050,708.85,Lugg Valley Primrose Travel Ltd,201705,Environment and Place,Third Party Payments,
24/08/2016,3838059,847.85,Lugg Valley Primrose Travel Ltd,201705,Environment and Place,Third Party Payments,
24/08/2016,3838068,"11,610.26",Lugg Valley Primrose Travel Ltd,201705,Environment and Place,Third Party Payments,
03/08/2016,3836688,450,Lugg Valley Primrose Travel Ltd,201705,Schools,Transport-Related Expenditure,
23/08/2016,2141767,458.33,Wigmore Primary School (Academy),201705,Central Childrens Directorate Costs,Support Services,
23/08/2016,2141484,458.33,Lady Hawkins School (Academy),201705,Central Childrens Directorate Costs,Support Services,
23/08/2016,2141651,458.33,Lady Hawkins School (Academy),201705,Central Childrens Directorate Costs,Support Services,
03/08/2016,3836539,"1,540.00",M&S Coaches Of Hereford Limited,201705,Environment and Place,Transport-Related Expenditure,
03/08/2016,3836541,"2,400.00",M&S Coaches Of Hereford Limited,201705,Environment and Place,Transport-Related Expenditure,
03/08/2016,3836544,"2,400.00",M&S Coaches Of Hereford Limited,201705,Environment and Place,Transport-Related Expenditure,
03/08/2016,3836551,"2,208.00",M&S Coaches Of Hereford Limited,201705,Environment and Place,Transport-Related Expenditure,
12/08/2016,3837622,"2,505.30",Malvern Catering Services Ltd,201705,Schools,Supplies & Services,
12/08/2016,3837429,"4,583.33",Marches Family Network,201705,Education and Commissioning,Third Party Payments,
12/08/2016,3837430,"4,556.68",Marches Family Network,201705,Education and Commissioning,Third Party Payments,
03/08/2016,4691485,"2,707.10",Marlbrook  Primary School,201705,Central Childrens Directorate Costs,Support Services,
05/08/2016,4691712,"36,328.00",Marlbrook  Primary School,201705,Children & Young People Capital,Capital Expenditure,
23/08/2016,2141457,777,Marlbrook  Primary School,201705,Children & Young People Capital,Capital Income,
10/08/2016,3837209,"2,688.00",The Cart Shed Charity,201705,Education and Commissioning,Supplies & Services,
19/08/2016,3837937,"5,089.00",The Cart Shed Charity,201705,Education and Commissioning,Supplies & Services,
17/08/2016,3837488,"9,833.00",Millhouse Residential Care Home,201705,Learning Disabilities,Third Party Payments,
17/08/2016,3837489,"9,833.00",Millhouse Residential Care Home,201705,Learning Disabilities,Third Party Payments,
23/08/2016,2141477,458.33,Holmer C of E Academy,201705,Central Childrens Directorate Costs,Support Services,
23/08/2016,2141797,458.33,Holmer C of E Academy,201705,Central Childrens Directorate Costs,Support Services,
10/08/2016,3837413,535,Holmer C of E Academy,201705,Education and Commissioning,Support Services,
03/08/2016,3837013,"1,140.00",Minibus Services,201705,Learning Disabilities,Transport-Related Expenditure,
03/08/2016,3837014,"1,133.99",Minibus Services,201705,Learning Disabilities,Transport-Related Expenditure,
10/08/2016,4691815,551,Herefordshire Governors Association,201705,Schools,Employees,
31/08/2016,3838446,"1,600.00",D & T Engineering,201705,Children & Young People Capital,Capital Expenditure,
17/08/2016,3837725,"6,044.50",CS Catering Equipment Ltd.,201705,Schools Devolved Capital,Capital Expenditure,
12/08/2016,3837652,"3,058.48",Monmouthshire County Council,201705,Environment and Place,Premises-Related Expenditure,
12/08/2016,3837652,"10,567.43",Monmouthshire County Council,201705,Environment and Place,Support Services,
12/08/2016,3837652,657.43,Monmouthshire County Council,201705,Environment and Place,Transport-Related Expenditure,
02/09/2016,3838807,"2,594.23",Moorfield House Surgery,201705,Environment and Place,Supplies & Services,
03/08/2016,4691662,"63,257.32",Western Power Distribution,201705,Growth Capital,Capital Expenditure,
05/08/2016,3837077,"5,408.05",Alzheimer's Society,201705,Mental Health,Supplies & Services,
25/08/2016,3838399,"5,408.05",Alzheimer's Society,201705,Mental Health,Supplies & Services,
25/08/2016,3838355,"6,696.00",3M United Kingdom PLC,201705,Communities,Supplies & Services,
03/08/2016,4691512,"4,219.50",REDACTED,201705,Housing & Independent Living Capital,Capital Expenditure,
10/08/2016,3837416,"3,139.15",REDACTED,201705,Housing & Independent Living Capital,Capital Expenditure,
10/08/2016,3837018,840,REDACTED,201705,Learning Disabilities,Transport-Related Expenditure,
12/08/2016,3837649,"4,183.50",Hopton Building Services Ltd,201705,Housing & Independent Living Capital,Capital Expenditure,
19/08/2016,3838167,"3,829.00",Hopton Building Services Ltd,201705,Housing & Independent Living Capital,Capital Expenditure,
31/08/2016,3838715,"1,045.00",Hopton Building Services Ltd,201705,Housing & Independent Living Capital,Capital Expenditure,
10/08/2016,3837310,905.72,Hoople Ltd,201705,Adults Operations,Supplies & Services,
19/08/2016,3838003,"16,167.86",Hoople Ltd,201705,Central Childrens Directorate Costs,Support Services,
12/08/2016,3837163,"6,168.13",Hoople Ltd,201705,Commissioning Adults,Employees,
05/08/2016,3837095,"2,155.30",Hoople Ltd,201705,Education and Commissioning,Supplies & Services,
12/08/2016,3837428,"2,200.00",Hoople Ltd,201705,Education and Commissioning,Third Party Payments,
17/08/2016,3837842,"2,200.00",Hoople Ltd,201705,Education and Commissioning,Third Party Payments,
02/09/2016,3838763,"2,200.00",Hoople Ltd,201705,Education and Commissioning,Third Party Payments,
03/08/2016,3835616,514.4,Hoople Ltd,201705,Environment and Place,Supplies & Services,
17/08/2016,3837615,"2,405.00",Hoople Ltd,201705,Environment and Place,Supplies & Services,
17/08/2016,3837311,"1,015.00",Hoople Ltd,201705,Environment and Place,Supplies & Services,
03/08/2016,3835731,"1,795.00",Hoople Ltd,201705,Integrated Commissioning,Capital Expenditure,
03/08/2016,3836136,"1,463.85",Hoople Ltd,201705,Integrated Commissioning,Capital Expenditure,
03/08/2016,3835721,"5,162.14",Hoople Ltd,201705,Resources,Employees,
12/08/2016,3837164,"4,215.94",Hoople Ltd,201705,Resources,Employees,
12/08/2016,3837165,530.56,Hoople Ltd,201705,Resources,Employees,
03/08/2016,3835730,"6,578.55",Hoople Ltd,201705,Resources,Supplies & Services,
03/08/2016,3836716,"4,275.00",Hoople Ltd,201705,Resources,Supplies & Services,
10/08/2016,3835617,"1,577.82",Hoople Ltd,201705,Resources,Supplies & Services,
10/08/2016,3837313,609,Hoople Ltd,201705,Resources,Supplies & Services,
17/08/2016,3836537,"15,748.30",Hoople Ltd,201705,Resources,Supplies & Services,
17/08/2016,3837162,"5,700.00",Hoople Ltd,201705,Resources,Supplies & Services,
25/08/2016,3835569,"18,670.00",Hoople Ltd,201705,Resources,Supplies & Services,
12/08/2016,3837165,530.56,Hoople Ltd,201705,Resources,Suspense Accounts,
03/08/2016,3836702,"1,506.00",Hoople Ltd,201705,Safeguarding and Family Support,Supplies & Services,
25/08/2016,3838391,536,Hoople Ltd,201705,Schools,Supplies & Services,
03/08/2016,3836545,"1,134.02",REDACTED,201705,Environment and Place,Transport-Related Expenditure,
16/08/2016,2138854,"117,687.14",Worcestershire Health & Care NHS Trust,201705,Public Health,Third Party Payments,
24/08/2016,3838200,"1,438.00",Worcestershire Health & Care NHS Trust,201705,Public Health,Third Party Payments,
10/08/2016,3836615,"1,977.80",REDACTED,201705,Schools,Supplies & Services,
02/09/2016,4691471,"2,378.20",REDACTED,201705,Schools,Supplies & Services,
23/08/2016,2141473,458.33,Lugwardine Primary Academy,201705,Central Childrens Directorate Costs,Support Services,
23/08/2016,2141806,719.17,Lugwardine Primary Academy,201705,Central Childrens Directorate Costs,Support Services,
31/08/2016,3838612,945,Waveney Publishing Ltd,201705,Schools,Supplies & Services,
23/08/2016,2141480,458.33,St Pauls Church of England Primary School,201705,Central Childrens Directorate Costs,Support Services,
23/08/2016,2141481,458.33,St Pauls Church of England Primary School,201705,Central Childrens Directorate Costs,Support Services,
23/08/2016,2141662,719.17,St Pauls Church of England Primary School,201705,Central Childrens Directorate Costs,Support Services,
23/08/2016,2141759,458.33,St Pauls Church of England Primary School,201705,Central Childrens Directorate Costs,Support Services,
23/08/2016,2141807,458.33,St Pauls Church of England Primary School,201705,Central Childrens Directorate Costs,Support Services,
03/08/2016,4691483,881.24,Little Dewchurch CE Primary School,201705,Central Childrens Directorate Costs,Support Services,
10/08/2016,3837437,580,Twenty Seventeen Ltd,201705,Commissioning Capital,Capital Expenditure,
03/08/2016,3835375,"1,534.50",MS & EM Patrick Ltd,201705,Environment and Place,Supplies & Services,
03/08/2016,3836174,"2,232.00",MS & EM Patrick Ltd,201705,Environment and Place,Supplies & Services,
24/08/2016,3838086,"1,395.00",MS & EM Patrick Ltd,201705,Environment and Place,Supplies & Services,
31/08/2016,3838582,"13,020.75",Onside Independent Advocacy,201705,Commissioning Adults,Third Party Payments,
31/08/2016,3838736,"5,051.95",Onside Independent Advocacy,201705,Public Health,Transfer Payments,
31/08/2016,3838717,"1,868.00",MVF Builders Ltd,201705,Housing & Independent Living Capital,Capital Expenditure,
17/08/2016,3837556,736.3,The Contact People,201705,Resources,Supplies & Services,
24/08/2016,3838197,"3,985.50",Neopost Finance Ltd,201705,Communities,Supplies & Services,
24/08/2016,3838198,"2,734.45",Neopost Finance Ltd,201705,Communities,Supplies & Services,
03/08/2016,4691567,"1,093.25",Neopost Finance Ltd,201705,Resources,Supplies & Services,
24/08/2016,3838097,"1,436.06",Neopost Finance Ltd,201705,Resources,Supplies & Services,
25/08/2016,3838455,611.37,Neopost Finance Ltd,201705,Resources,Supplies & Services,
31/08/2016,3838726,843.88,Neopost Finance Ltd,201705,Resources,Supplies & Services,
03/08/2016,3836671,"3,255.00",OP Software Ltd,201705,Schools Devolved Capital,Capital Expenditure,
31/08/2016,3838532,500,No 5 Chambers Ltd,201705,Growth,Supplies & Services,
12/08/2016,3836156,"1,193.00",Northgate Public Services (UK) Ltd,201705,Communities,Supplies & Services,
12/08/2016,3837123,"1,220.14",Northgate Public Services (UK) Ltd,201705,Communities,Supplies & Services,
12/08/2016,3837471,"1,222.20",Northgate Public Services (UK) Ltd,201705,Communities,Supplies & Services,
02/09/2016,3838799,"110,786.26",Nottingham Rehab Ltd,201705,Commissioning Adults,Supplies & Services,
02/09/2016,3838799,"14,542.05",Nottingham Rehab Ltd,201705,Commissioning Adults,Transport-Related Expenditure,
19/08/2016,3837930,"1,392.60",Nottingham Rehab Ltd,201705,Transformation and safeguarding,Supplies & Services,
31/08/2016,3837935,653.37,Npower,201705,Environment and Place,Premises-Related Expenditure,
12/08/2016,3836062,"8,580.15",Octaga Security Services Ltd,201705,Environment and Place,Supplies & Services,
05/08/2016,4691695,451.3,ESPO,201705,Schools,Supplies & Services,
10/08/2016,3837265,569.3,ESPO,201705,Schools,Supplies & Services,
19/08/2016,3837924,"8,604.24",Orange plc (Airtime),201705,Resources,Supplies & Services,
03/08/2016,3836668,531,Orphans Press Ltd,201705,Communities,Supplies & Services,
03/08/2016,3836670,452.85,Orphans Press Ltd,201705,Communities,Supplies & Services,
17/08/2016,3837673,"30,174.46",Owen Pell Ltd,201705,Growth Capital,Capital Expenditure,
03/08/2016,3836300,"1,155.00",P W Jones (Hereford) Ltd,201705,Environment and Place,Transport-Related Expenditure,
03/08/2016,3836540,"2,310.00",P W Jones (Hereford) Ltd,201705,Environment and Place,Transport-Related Expenditure,
03/08/2016,3837005,"2,345.68",P W Jones (Hereford) Ltd,201705,Environment and Place,Transport-Related Expenditure,
17/08/2016,3828657,"1,237.50",P W Jones (Hereford) Ltd,201705,Environment and Place,Transport-Related Expenditure,
03/08/2016,3835723,475,P W Jones (Hereford) Ltd,201705,Schools,Supplies & Services,
05/08/2016,4691741,"1,500.00",P W Jones (Hereford) Ltd,201705,Schools,Supplies & Services,
03/08/2016,3836634,"1,100.00",P W Jones (Hereford) Ltd,201705,Schools,Transport-Related Expenditure,
03/08/2016,4691515,795,P W Jones (Hereford) Ltd,201705,Schools,Transport-Related Expenditure,
03/08/2016,4691516,"1,602.95",P W Jones (Hereford) Ltd,201705,Schools,Transport-Related Expenditure,
03/08/2016,3837046,"4,094.43",Ezitracker,201705,Transformation and safeguarding,Supplies & Services,
03/08/2016,3837047,"4,518.48",Ezitracker,201705,Transformation and safeguarding,Supplies & Services,
25/08/2016,2142049,500.36,West Mercia Energy,201705,Environment and Place,Premises-Related Expenditure,
25/08/2016,2142057,"30,236.47",West Mercia Energy,201705,Environment and Place,Premises-Related Expenditure,
25/08/2016,2142058,"25,690.88",West Mercia Energy,201705,Environment and Place,Premises-Related Expenditure,
25/08/2016,2142059,"23,456.76",West Mercia Energy,201705,Environment and Place,Premises-Related Expenditure,
25/08/2016,2142060,"26,770.36",West Mercia Energy,201705,Environment and Place,Premises-Related Expenditure,
25/08/2016,2142061,"27,988.46",West Mercia Energy,201705,Environment and Place,Premises-Related Expenditure,
25/08/2016,2142062,"32,059.05",West Mercia Energy,201705,Environment and Place,Premises-Related Expenditure,
25/08/2016,2142063,"31,793.31",West Mercia Energy,201705,Environment and Place,Premises-Related Expenditure,
25/08/2016,2142064,"29,961.74",West Mercia Energy,201705,Environment and Place,Premises-Related Expenditure,
25/08/2016,2142065,"28,174.34",West Mercia Energy,201705,Environment and Place,Premises-Related Expenditure,
25/08/2016,2142066,"22,163.07",West Mercia Energy,201705,Environment and Place,Premises-Related Expenditure,
25/08/2016,2142067,"20,195.54",West Mercia Energy,201705,Environment and Place,Premises-Related Expenditure,
25/08/2016,2142068,"37,115.19",West Mercia Energy,201705,Environment and Place,Premises-Related Expenditure,
25/08/2016,2142113,"1,736.20",West Mercia Energy,201705,Environment and Place,Premises-Related Expenditure,
25/08/2016,2142132,499.41,West Mercia Energy,201705,Environment and Place,Premises-Related Expenditure,
25/08/2016,2142203,973.62,West Mercia Energy,201705,Environment and Place,Premises-Related Expenditure,
25/08/2016,2142207,556.31,West Mercia Energy,201705,Environment and Place,Premises-Related Expenditure,
25/08/2016,2142215,481.54,West Mercia Energy,201705,Environment and Place,Premises-Related Expenditure,
25/08/2016,2142243,632.07,West Mercia Energy,201705,Environment and Place,Premises-Related Expenditure,
25/08/2016,2142267,787.07,West Mercia Energy,201705,Environment and Place,Premises-Related Expenditure,
25/08/2016,2142302,742.26,West Mercia Energy,201705,Environment and Place,Premises-Related Expenditure,
25/08/2016,2142303,"1,804.11",West Mercia Energy,201705,Environment and Place,Premises-Related Expenditure,
25/08/2016,2142310,"1,836.06",West Mercia Energy,201705,Environment and Place,Premises-Related Expenditure,
25/08/2016,2142312,"1,804.53",West Mercia Energy,201705,Environment and Place,Premises-Related Expenditure,
25/08/2016,2142319,811.21,West Mercia Energy,201705,Environment and Place,Premises-Related Expenditure,
25/08/2016,2142320,740.71,West Mercia Energy,201705,Environment and Place,Premises-Related Expenditure,
25/08/2016,2142321,"11,793.70",West Mercia Energy,201705,Environment and Place,Premises-Related Expenditure,
25/08/2016,2142323,983.76,West Mercia Energy,201705,Environment and Place,Premises-Related Expenditure,
25/08/2016,2142338,658.76,West Mercia Energy,201705,Environment and Place,Premises-Related Expenditure,
25/08/2016,2142340,732.6,West Mercia Energy,201705,Environment and Place,Premises-Related Expenditure,
25/08/2016,2142341,896.62,West Mercia Energy,201705,Environment and Place,Premises-Related Expenditure,
25/08/2016,2142342,555.62,West Mercia Energy,201705,Environment and Place,Premises-Related Expenditure,
25/08/2016,2142350,"1,171.51",West Mercia Energy,201705,Environment and Place,Premises-Related Expenditure,
25/08/2016,2142378,504.99,West Mercia Energy,201705,Environment and Place,Premises-Related Expenditure,
25/08/2016,2142382,570.05,West Mercia Energy,201705,Environment and Place,Premises-Related Expenditure,
25/08/2016,2142387,554.3,West Mercia Energy,201705,Environment and Place,Premises-Related Expenditure,
25/08/2016,2142440,635.83,West Mercia Energy,201705,Environment and Place,Premises-Related Expenditure,
25/08/2016,2142452,544.39,West Mercia Energy,201705,Environment and Place,Premises-Related Expenditure,
25/08/2016,2142464,867.71,West Mercia Energy,201705,Environment and Place,Premises-Related Expenditure,
25/08/2016,2142465,"12,212.05",West Mercia Energy,201705,Environment and Place,Premises-Related Expenditure,
25/08/2016,2142468,"1,106.49",West Mercia Energy,201705,Environment and Place,Premises-Related Expenditure,
25/08/2016,2142470,683.85,West Mercia Energy,201705,Environment and Place,Premises-Related Expenditure,
25/08/2016,2142504,"1,876.63",West Mercia Energy,201705,Environment and Place,Premises-Related Expenditure,
25/08/2016,2142526,"2,039.87",West Mercia Energy,201705,Environment and Place,Premises-Related Expenditure,
25/08/2016,2142040,445.79,West Mercia Energy,201705,Schools,Premises-Related Expenditure,
25/08/2016,2142048,"1,471.25",West Mercia Energy,201705,Schools,Premises-Related Expenditure,
25/08/2016,2142050,478.19,West Mercia Energy,201705,Schools,Premises-Related Expenditure,
25/08/2016,2142051,434.11,West Mercia Energy,201705,Schools,Premises-Related Expenditure,
25/08/2016,2142053,474.4,West Mercia Energy,201705,Schools,Premises-Related Expenditure,
25/08/2016,2142146,482.8,West Mercia Energy,201705,Schools,Premises-Related Expenditure,
25/08/2016,2142155,455.83,West Mercia Energy,201705,Schools,Premises-Related Expenditure,
25/08/2016,2142159,580.6,West Mercia Energy,201705,Schools,Premises-Related Expenditure,
25/08/2016,2142187,479.06,West Mercia Energy,201705,Schools,Premises-Related Expenditure,
25/08/2016,2142196,618.67,West Mercia Energy,201705,Schools,Premises-Related Expenditure,
25/08/2016,2142217,717.22,West Mercia Energy,201705,Schools,Premises-Related Expenditure,
25/08/2016,2142218,970.87,West Mercia Energy,201705,Schools,Premises-Related Expenditure,
25/08/2016,2142275,516.29,West Mercia Energy,201705,Schools,Premises-Related Expenditure,
25/08/2016,2142322,"1,137.87",West Mercia Energy,201705,Schools,Premises-Related Expenditure,
25/08/2016,2142324,964.4,West Mercia Energy,201705,Schools,Premises-Related Expenditure,
25/08/2016,2142325,948.31,West Mercia Energy,201705,Schools,Premises-Related Expenditure,
25/08/2016,2142326,891.19,West Mercia Energy,201705,Schools,Premises-Related Expenditure,
25/08/2016,2142327,919.39,West Mercia Energy,201705,Schools,Premises-Related Expenditure,
25/08/2016,2142367,573.18,West Mercia Energy,201705,Schools,Premises-Related Expenditure,
25/08/2016,2142368,947.83,West Mercia Energy,201705,Schools,Premises-Related Expenditure,
25/08/2016,2142376,451.51,West Mercia Energy,201705,Schools,Premises-Related Expenditure,
25/08/2016,2142391,576.32,West Mercia Energy,201705,Schools,Premises-Related Expenditure,
25/08/2016,2142397,461.81,West Mercia Energy,201705,Schools,Premises-Related Expenditure,
25/08/2016,2142426,568.06,West Mercia Energy,201705,Schools,Premises-Related Expenditure,
25/08/2016,2142466,"1,169.79",West Mercia Energy,201705,Schools,Premises-Related Expenditure,
25/08/2016,2142467,815.09,West Mercia Energy,201705,Schools,Premises-Related Expenditure,
25/08/2016,2142469,837.9,West Mercia Energy,201705,Schools,Premises-Related Expenditure,
25/08/2016,2142525,491.24,West Mercia Energy,201705,Schools,Premises-Related Expenditure,
31/08/2016,3838590,440.18,West Mercia Energy,201705,Schools,Premises-Related Expenditure,
05/08/2016,3837067,"2,451.55",Patrol,201705,Environment and Place,Suspense Accounts,
19/08/2016,3837893,"2,059.32",NCER CIC,201705,Education and Commissioning,Supplies & Services,
05/08/2016,3837096,"1,437.00",PCF Print Management Ltd,201705,Resources,Supplies & Services,
17/08/2016,3837148,"1,180.00",Pearson Education Ltd,201705,Schools,Supplies & Services,
31/08/2016,3837170,"3,442.98",Pearson Education Ltd,201705,Schools,Supplies & Services,
03/08/2016,4691660,"3,562.22",Peters Bookselling Services,201705,Communities,Supplies & Services,
12/08/2016,3837448,603,PHS Group Plc,201705,Environment and Place,Third Party Payments,
23/08/2016,2141724,458.33,Stretton Sugwas CE Academy,201705,Central Childrens Directorate Costs,Support Services,
23/08/2016,2141726,458.33,Stretton Sugwas CE Academy,201705,Central Childrens Directorate Costs,Support Services,
23/08/2016,2141733,458.33,Stretton Sugwas CE Academy,201705,Central Childrens Directorate Costs,Support Services,
24/08/2016,3838281,950,Mallard Consultancy Ltd,201705,Environment and Place,Supplies & Services,
17/08/2016,3837794,"1,400.00",Project Link Services Cic,201705,Education and Commissioning,Supplies & Services,
10/08/2016,4691836,660,Assessments & Learning,201705,Schools,Supplies & Services,
19/08/2016,3837535,753.5,Putson Community Association Ltd,201705,Communities Capital,Capital Expenditure,
03/08/2016,3836529,"1,134.00",REDACTED,201705,Environment and Place,Transport-Related Expenditure,
03/08/2016,3836546,"1,022.00",REDACTED,201705,Environment and Place,Transport-Related Expenditure,
10/08/2016,3837191,"2,037.00",Red Spark Learning CIC,201705,Education and Commissioning,Supplies & Services,
10/08/2016,3837192,"1,733.56",Red Spark Learning CIC,201705,Education and Commissioning,Supplies & Services,
17/08/2016,3837806,"3,696.00",Red Spark Learning CIC,201705,Education and Commissioning,Supplies & Services,
31/08/2016,3838615,726.08,Relion Heating Services Ltd,201705,Schools,Premises-Related Expenditure,
31/08/2016,3838616,"1,996.94",Relion Heating Services Ltd,201705,Schools,Premises-Related Expenditure,
31/08/2016,3838617,422.93,Relion Heating Services Ltd,201705,Schools,Premises-Related Expenditure,
05/08/2016,3836264,"1,850.00",REDACTED,201705,Schools,Premises-Related Expenditure,
03/08/2016,4691653,502,Royal Inst Of Chartered Surveyors (RICS),201705,Environment and Place,Supplies & Services,
19/08/2016,3838040,"2,347.65",Royal Mail Group Ltd,201705,Communities,Supplies & Services,
19/08/2016,3838041,979.2,Royal Mail Group Ltd,201705,Communities,Supplies & Services,
19/08/2016,3838042,"1,159.65",Royal Mail Group Ltd,201705,Communities,Supplies & Services,
19/08/2016,3838043,"1,469.40",Royal Mail Group Ltd,201705,Communities,Supplies & Services,
19/08/2016,3838044,"2,684.12",Royal Mail Group Ltd,201705,Communities,Supplies & Services,
19/08/2016,3838045,"2,199.96",Royal Mail Group Ltd,201705,Communities,Supplies & Services,
19/08/2016,3838046,"1,820.88",Royal Mail Group Ltd,201705,Communities,Supplies & Services,
03/08/2016,4691568,787,Royal Mail Group Ltd,201705,Resources,Supplies & Services,
03/08/2016,3836700,"1,883.00",REDACTED,201705,Environment and Place,Transport-Related Expenditure,
03/08/2016,3837002,"1,113.00",REDACTED,201705,Environment and Place,Transport-Related Expenditure,
03/08/2016,3836070,"1,892.77",S C Joseph Ltd,201705,Schools Devolved Capital,Capital Expenditure,
03/08/2016,3836495,"1,477.00",S C Joseph Ltd,201705,Schools Devolved Capital,Capital Expenditure,
03/08/2016,3836496,690.68,S M Stanley Builders Ltd,201705,Schools,Premises-Related Expenditure,
12/08/2016,3836248,685,Safetynet Solutions Ltd,201705,Resources,Supplies & Services,
10/08/2016,3837370,"1,306.38",CLOSED Salters Hill Charity Ltd,201705,Public Health,Transfer Payments,
24/08/2016,3838057,770.4,Sargeants Brothers Ltd,201705,Environment and Place,Third Party Payments,
24/08/2016,3838067,"7,417.71",Sargeants Brothers Ltd,201705,Environment and Place,Third Party Payments,
31/08/2016,3838438,"7,055.00",Sargeants Brothers Ltd,201705,Environment and Place,Third Party Payments,
10/08/2016,3837302,"15,000.00",Sargeants Brothers Ltd,201705,Environment and Place,Transport-Related Expenditure,
10/08/2016,3837326,"2,356.66",Sargeants Brothers Ltd,201705,Environment and Place,Transport-Related Expenditure,
10/08/2016,3837327,"1,950.00",Sargeants Brothers Ltd,201705,Environment and Place,Transport-Related Expenditure,
17/08/2016,3837564,579.5,School Trends,201705,Schools,Supplies & Services,
12/08/2016,3837197,"9,337.50",Sciprint Limited,201705,Communities,Supplies & Services,
12/08/2016,3837198,"10,440.00",Sciprint Limited,201705,Communities,Supplies & Services,
24/08/2016,3837969,"2,502.23",Scottish Power Group,201705,Environment and Place,Premises-Related Expenditure,
17/08/2016,3837579,475,Sea Legs Puppet Theatre Co.,201705,Communities,Supplies & Services,
17/08/2016,3837783,475,Sea Legs Puppet Theatre Co.,201705,Communities,Supplies & Services,
31/08/2016,3838674,973.75,Sentinel Security Systems,201705,Schools,Premises-Related Expenditure,
10/08/2016,3837044,"32,543.00",Services For Independent Living,201705,Commissioning Adults,Third Party Payments,
24/08/2016,3837957,"2,969.70",Severn Valley Window & Door Ltd,201705,Resources,Premises-Related Expenditure,
17/08/2016,3837691,"5,780.00",Severn Valley Window & Door Ltd,201705,Schools,Premises-Related Expenditure,
12/08/2016,3837138,"5,435.88",Severn Waste Services Ltd,201705,Environment and Place,Premises-Related Expenditure,
12/08/2016,3837138,"1,914.38",Severn Waste Services Ltd,201705,Environment and Place,Supplies & Services,
12/08/2016,3837193,"2,695.00",Shaw & Sons Ltd,201705,Communities,Supplies & Services,
10/08/2016,3837392,"254,675.54",Shaw Healthcare (Herefordshire) Ltd,201705,Physical Disabilities,Third Party Payments,
10/08/2016,3837446,"4,785.85",Shaw Healthcare (Herefordshire) Ltd,201705,Physical Disabilities,Third Party Payments,
10/08/2016,3837447,"57,407.35",Shaw Healthcare (Herefordshire) Ltd,201705,Physical Disabilities,Third Party Payments,
03/08/2016,3835755,"8,583.21",Shaw Healthcare Ltd,201705,Physical Disabilities,Employees,
17/08/2016,3837574,"10,400.00",Shropshire Council,201705,Public Health,Supplies & Services,
10/08/2016,3836464,780,Shropshire Council,201705,Safeguarding and Family Support,Supplies & Services,
05/08/2016,3836800,"1,982.20",Shropshire Council,201705,Schools,Supplies & Services,
05/08/2016,3835555,"6,282.00",Signs & Labels Hereford,201705,Environment and Place,Supplies & Services,
31/08/2016,3838722,783,Chiltern Invadex (UK) Ltd,201705,Housing & Independent Living Capital,Capital Expenditure,
10/08/2016,3837110,"43,802.44",Kier Construction - Central Div of Kier Construction Ltd,201705,Children & Young People Capital,Capital Expenditure,
02/09/2016,3838633,"35,835.34",Kier Construction - Central Div of Kier Construction Ltd,201705,Resources Capital,Capital Expenditure,
31/08/2016,3838625,900,Soundwork,201705,Environment and Place,Supplies & Services,
21/06/2016,3836863,508.97,Spa Gas Ltd,201705,Schools,Premises-Related Expenditure,
03/08/2016,3836387,508.97,Spa Gas Ltd,201705,Schools,Premises-Related Expenditure,
10/08/2016,3837230,538.55,Spa Gas Ltd,201705,Schools,Premises-Related Expenditure,
17/08/2016,3837659,467.32,Spa Gas Ltd,201705,Schools,Premises-Related Expenditure,
25/08/2016,3838498,556,Superstars/Sports Stars Ltd,201705,Schools,Supplies & Services,
10/08/2016,3837206,"1,485.00",Aerial - Cam Ltd,201705,Environment and Place,Supplies & Services,
10/08/2016,3837207,990,Aerial - Cam Ltd,201705,Environment and Place,Supplies & Services,
17/08/2016,3837548,550,REDACTED,201705,Environment and Place,Supplies & Services,
24/08/2016,3838066,"12,490.69",Stagecoach Services Limited,201705,Environment and Place,Third Party Payments,
31/08/2016,3838444,"3,615.34",Stagecoach Services Limited,201705,Environment and Place,Third Party Payments,
25/08/2016,3838485,"1,093.40",REDACTED,201705,Schools,Supplies & Services,
24/08/2016,3838408,425,Sunderlands & Thompsons LLP,201705,Commissioning Capital,Capital Expenditure,
02/09/2016,3838804,500,Sunderlands & Thompsons LLP,201705,Environment and Place,Supplies & Services,
03/08/2016,2133812,755.84,Support Services - Legal,201705,Adults Operations,Supplies & Services,
03/08/2016,2133812,"13,878.25",Support Services - Legal,201705,Communities,Supplies & Services,
17/08/2016,3837730,"24,166.67",Stonham,201705,Commissioning Adults,Supplies & Services,
19/08/2016,3837731,"13,083.34",Stonham,201705,Commissioning Adults,Supplies & Services,
03/08/2016,3836528,525,Puwertec,201705,Environment and Place,Supplies & Services,
19/08/2016,3837947,"1,371.50",REDACTED,201705,Education and Commissioning,Supplies & Services,
10/08/2016,3837180,950.32,Business Angel Ltd,201705,Education and Commissioning,Supplies & Services,
10/08/2016,3837181,"1,036.00",Business Angel Ltd,201705,Education and Commissioning,Supplies & Services,
17/08/2016,3837775,"1,727.35",Business Angel Ltd,201705,Education and Commissioning,Supplies & Services,
19/08/2016,3837872,"5,404.18",Telent Traffic Technology Services Ltd,201705,Environment and Place,Third Party Payments,
03/08/2016,3836599,660,The Key Support Services Ltd,201705,Schools,Supplies & Services,
03/08/2016,3836639,884,Tennis Hereford,201705,Schools,Supplies & Services,
17/08/2016,3837917,448,Testbase/ Exampro,201705,Schools,Supplies & Services,
25/08/2016,3838392,765,HME Technology Ltd,201705,Schools,Supplies & Services,
03/08/2016,3836483,425.32,The Anglia Sign Casting Company,201705,Environment and Place,Supplies & Services,
03/08/2016,3836526,"1,868.80",The British Library,201705,Communities,Supplies & Services,
31/08/2016,3838563,"4,921.24",The Copyright Licensing Agency Ltd (CLA),201705,Communities,Supplies & Services,
31/08/2016,3838708,670.7,The Courtyard Trust,201705,Resources,Premises-Related Expenditure,
17/08/2016,3837657,649.46,The Danwood Group Limited,201705,Schools,Supplies & Services,
23/08/2016,2141502,458.33,BAE Trust T/A The Hereford Academy,201705,Central Childrens Directorate Costs,Support Services,
23/08/2016,2141503,458.33,BAE Trust T/A The Hereford Academy,201705,Central Childrens Directorate Costs,Support Services,
23/08/2016,2141615,458.33,BAE Trust T/A The Hereford Academy,201705,Central Childrens Directorate Costs,Support Services,
23/08/2016,2141637,458.33,BAE Trust T/A The Hereford Academy,201705,Central Childrens Directorate Costs,Support Services,
23/08/2016,2141708,458.33,BAE Trust T/A The Hereford Academy,201705,Central Childrens Directorate Costs,Support Services,
23/08/2016,2141816,545.85,BAE Trust T/A The Hereford Academy,201705,Central Childrens Directorate Costs,Support Services,
03/08/2016,3836572,"1,090.50",The Kindle Centre,201705,Resources,Premises-Related Expenditure,
24/08/2016,3838215,640,Class Fundraising Ltd / Class Printing,201705,Communities,Supplies & Services,
17/08/2016,3837580,"1,375.00",The Music Pool,201705,Communities,Supplies & Services,
16/08/2016,2138852,"2,901.58",The Plynlimon Trust Community Car Scheme,201705,Environment and Place,Supplies & Services,
10/08/2016,3837338,930.3,The Plynlimon Trust Community Car Scheme,201705,Environment and Place,Transport-Related Expenditure,
17/08/2016,3837823,578.9,The Plynlimon Trust Community Car Scheme,201705,Environment and Place,Transport-Related Expenditure,
17/08/2016,3837824,"1,999.76",The Plynlimon Trust Community Car Scheme,201705,Environment and Place,Transport-Related Expenditure,
31/08/2016,3838664,"2,088.00",The Rural Media Charity,201705,Environment and Place,Supplies & Services,
23/08/2016,2141507,458.33,The Steiner Academy Hereford,201705,Central Childrens Directorate Costs,Support Services,
23/08/2016,2141664,458.33,The Steiner Academy Hereford,201705,Central Childrens Directorate Costs,Support Services,
23/08/2016,2141811,458.33,The Steiner Academy Hereford,201705,Central Childrens Directorate Costs,Support Services,
03/08/2016,3836307,725.39,Alcontrol UK Ltd (Direct Debit),201705,Environment and Place,Supplies & Services,
12/08/2016,3837035,891.55,Alcontrol UK Ltd (Direct Debit),201705,Environment and Place,Supplies & Services,
17/08/2016,3837550,799.72,Alcontrol UK Ltd (Direct Debit),201705,Environment and Place,Supplies & Services,
24/08/2016,3838142,"1,538.45",Tradebe  Gwent Ltd,201705,Environment and Place,Supplies & Services,
03/08/2016,4691634,559.85,TTS Group Ltd,201705,Schools,Premises-Related Expenditure,
12/08/2016,3835772,"2,904.00",Updata Infrastructure UK Ltd,201705,Resources,Supplies & Services,
25/08/2016,3838375,"1,298.00",Updata Infrastructure UK Ltd,201705,Resources,Supplies & Services,
05/08/2016,3836701,840,REDACTED,201705,Environment and Place,Transport-Related Expenditure,
05/08/2016,3837001,840.03,REDACTED,201705,Environment and Place,Transport-Related Expenditure,
14/10/2016,3838592,527.35,Veolia ES Onyx Ltd,201705,Schools,Third Party Payments,
05/08/2016,3837037,"10,788.68",Warwickshire County Council,201705,Communities,Supplies & Services,
03/08/2016,4691609,790,Watson Petroleum Limited,201705,Schools,Premises-Related Expenditure,
03/08/2016,4691168,714.22,Welsh Water,201705,Environment and Place,Premises-Related Expenditure,
05/08/2016,4690371,"1,047.50",Welsh Water,201705,Environment and Place,Premises-Related Expenditure,
19/08/2016,3837970,918.86,Welsh Water,201705,Environment and Place,Premises-Related Expenditure,
19/08/2016,3837971,"2,036.84",Welsh Water,201705,Environment and Place,Premises-Related Expenditure,
19/08/2016,3837972,"1,941.69",Welsh Water,201705,Environment and Place,Premises-Related Expenditure,
19/08/2016,3837974,533,Welsh Water,201705,Environment and Place,Premises-Related Expenditure,
19/08/2016,3837990,521.71,Welsh Water,201705,Environment and Place,Premises-Related Expenditure,
03/08/2016,3835280,"2,317.31",Welsh Water,201705,Schools,Premises-Related Expenditure,
03/08/2016,3835883,438.9,Welsh Water,201705,Schools,Premises-Related Expenditure,
03/08/2016,3836803,512.34,Welsh Water,201705,Schools,Premises-Related Expenditure,
10/08/2016,3836802,722.21,Welsh Water,201705,Schools,Premises-Related Expenditure,
10/08/2016,4691469,496.09,Welsh Water,201705,Schools,Premises-Related Expenditure,
24/08/2016,3837945,"1,377.69",Welsh Water,201705,Schools,Premises-Related Expenditure,
24/08/2016,4691338,456.85,Welsh Water,201705,Schools,Premises-Related Expenditure,
31/08/2016,3838516,492.22,Welsh Water,201705,Schools,Premises-Related Expenditure,
17/08/2016,3837752,"112,262.04",Welsh Water (DWR CYMRU CYF CIS ONLY),201705,Commissioning Capital,Capital Expenditure,
25/08/2016,2143058,"3,718.97",Weobley High School Petty Cash,201705,Schools,Supplies & Services,
03/08/2016,3836811,"29,706.58",West Mercia  Womens Aid,201705,Commissioning Adults,Supplies & Services,
17/08/2016,3837729,"29,706.58",West Mercia  Womens Aid,201705,Commissioning Adults,Supplies & Services,
31/08/2016,3838459,"17,533.34",West Mercia Homes Ltd,201705,Commissioning Adults,Supplies & Services,
03/08/2016,3836573,"15,000.00",West Mercia Police & Crime Commissioner,201705,Growth,Transfer Payments,
03/08/2016,3835529,743.65,West Mercia Supplies (The Consortium),201705,Schools,Supplies & Services,
03/08/2016,3835748,552.48,West Mercia Supplies (The Consortium),201705,Schools,Supplies & Services,
03/08/2016,3835749,435.79,West Mercia Supplies (The Consortium),201705,Schools,Supplies & Services,
03/08/2016,3836611,580.23,West Mercia Supplies (The Consortium),201705,Schools,Supplies & Services,
03/08/2016,3836612,563.76,West Mercia Supplies (The Consortium),201705,Schools,Supplies & Services,
05/08/2016,3837089,562.88,West Mercia Supplies (The Consortium),201705,Schools,Supplies & Services,
05/08/2016,3837091,857.51,West Mercia Supplies (The Consortium),201705,Schools,Supplies & Services,
10/08/2016,3837104,640.63,West Mercia Supplies (The Consortium),201705,Schools,Supplies & Services,
19/08/2016,3838037,610.88,West Mercia Supplies (The Consortium),201705,Schools,Supplies & Services,
19/08/2016,3836087,454.83,West Mercia Supplies (The Consortium),201705,Schools,Supplies & Services,
19/08/2016,3836397,494.48,West Mercia Supplies (The Consortium),201705,Schools,Supplies & Services,
24/08/2016,3838244,819.97,West Mercia Supplies (The Consortium),201705,Schools,Supplies & Services,
10/08/2016,3835486,480.03,West Mercia Supplies (The Consortium),201705,Schools Devolved Capital,Capital Expenditure,
24/08/2016,3838272,"12,920.00",West Midlands Employers service,201705,Resources,Supplies & Services,
05/08/2016,4691706,700,REDACTED,201705,Schools,Supplies & Services,
03/08/2016,3836710,"1,625.00",Westwood Developments,201705,Resources,Supplies & Services,
17/08/2016,2139890,"1,044.42",Whitchurch Ce Primary (Imprest),201705,Schools,Supplies & Services,
01/08/2016,4691558,"238,529.96",Whitecross@Stepnell Ltd,201705,Education and Commissioning,Premises-Related Expenditure,
15/08/2016,3837767,"238,529.96",Whitecross@Stepnell Ltd,201705,Education and Commissioning,Premises-Related Expenditure,
23/08/2016,2141812,719.17,Wigmore High School (Academy),201705,Central Childrens Directorate Costs,Support Services,
10/08/2016,4691857,450,Wigmore High School (Academy),201705,Schools,Employees,
03/08/2016,3836605,742.9,Wigmore High School (Academy),201705,Schools,Supplies & Services,
03/08/2016,3836606,"1,000.00",Wigmore High School (Academy),201705,Schools,Supplies & Services,
03/08/2016,3836622,823.4,Wigmore High School (Academy),201705,Schools,Supplies & Services,
10/08/2016,3836734,"1,929.96",Wigmore High School (Academy),201705,Schools,Supplies & Services,
03/08/2016,4691170,823.74,Wolters Kluwer (Uk) Ltd,201705,Environment and Place,Supplies & Services,
03/08/2016,3836247,600,Life Cycle UK,201705,Environment and Place,Transfer Payments,
17/08/2016,3837838,"40,750.00",Worcestershire County Council ,201705,Corporate,Employees,
31/08/2016,3838661,"204,773.34",Worcestershire County Council ,201705,Corporate,Employees,
10/08/2016,3837403,"1,600.00",Worcestershire County Council,201705,Education and Commissioning,Support Services,
10/08/2016,3837155,752.51,Worcestershire County Council,201705,Environment and Place,Supplies & Services,
25/08/2016,3838461,"863,737.66",Worcestershire County Council,201705,Environment and Place,Third Party Payments,
17/08/2016,3836952,"10,000.00",The Wye & Usk Foundation,201705,Environment and Place,Third Party Payments,
17/08/2016,3837667,826.8,XMA Ltd,201705,Resources,Supplies & Services,
17/08/2016,3837668,454.74,XMA Ltd,201705,Resources,Supplies & Services,
19/08/2016,3837857,"3,435.46",XMA Ltd,201705,Resources,Supplies & Services,
24/08/2016,3838060,"5,390.00",Yeomans Travel Ltd,201705,Environment and Place,Third Party Payments,
24/08/2016,3838061,665.3,Yeomans Travel Ltd,201705,Environment and Place,Third Party Payments,
24/08/2016,3838063,"6,469.50",Yeomans Travel Ltd,201705,Environment and Place,Third Party Payments,
24/08/2016,3838287,"43,878.27",Yeomans Travel Ltd,201705,Environment and Place,Third Party Payments,
31/08/2016,3838721,"1,854.56",Yeomans Travel Ltd,201705,Environment and Place,Third Party Payments,
03/08/2016,3836570,"1,645.00",Yeomans Travel Ltd,201705,Environment and Place,Transport-Related Expenditure,
19/08/2016,3836582,"28,403.07",Yeomans Travel Ltd,201705,Environment and Place,Transport-Related Expenditure,
03/08/2016,3836638,475,Yeomans Travel Ltd,201705,Schools,Transport-Related Expenditure,
23/08/2016,2141605,458.33,Whitecross Hereford Academy,201705,Central Childrens Directorate Costs,Support Services,
23/08/2016,2141712,458.33,Whitecross Hereford Academy,201705,Central Childrens Directorate Costs,Support Services,
17/08/2016,3837927,"2,061.25",REDACTED,201705,Communities,Supplies & Services,
10/08/2016,3837186,"6,626.25",Land Use Consultants Ltd,201705,Growth,Supplies & Services,
16/08/2016,2138846,"1,756.39",Bromyard Community Transport Ltd,201705,Environment and Place,Supplies & Services,
10/08/2016,3837139,808.51,Bromyard Community Transport Ltd,201705,Environment and Place,Transport-Related Expenditure,
10/08/2016,3837300,"1,253.01",Bromyard Community Transport Ltd,201705,Environment and Place,Transport-Related Expenditure,
31/08/2016,3838677,546.95,Yorkshire Purchasing,201705,Schools,Premises-Related Expenditure,
03/08/2016,3836426,550,SMS Energy Services,201705,Growth Capital,Capital Expenditure,
10/08/2016,3836425,550,SMS Energy Services,201705,Growth Capital,Capital Expenditure,
12/08/2016,3837485,"1,000.00",SMS Energy Services,201705,Growth Capital,Capital Expenditure,
16/08/2016,2138847,"1,877.09",CVS Ledbury & District (Ledbury Ring & Ride)Standing Order,201705,Environment and Place,Supplies & Services,
03/08/2016,3836557,"1,404.00",REDACTED,201705,Environment and Place,Transport-Related Expenditure,
12/08/2016,3836012,"3,150.00",Webbased Ltd,201705,Education and Commissioning,Supplies & Services,
03/08/2016,4691633,422.5,Forward Products,201705,Schools,Supplies & Services,
19/08/2016,3837672,"10,219.49",Thomas Vale Construction Plc,201705,Commissioning Capital,Capital Expenditure,
10/08/2016,4691855,846.1,Children's Scrapstore,201705,Schools,Supplies & Services,
03/08/2016,3835361,"1,045.00",Shawcity Ltd,201705,Environment and Place,Supplies & Services,
10/08/2016,3837187,"2,048.64",Ancer Spa Ltd,201705,Growth,Third Party Payments,
24/08/2016,3838232,571.9,Brightstripe - Cultural Health CIC,201705,Education and Commissioning,Supplies & Services,
24/08/2016,3838233,653.33,Brightstripe - Cultural Health CIC,201705,Education and Commissioning,Supplies & Services,
23/08/2016,2141757,458.33,Canon Pyon CE Academy,201705,Central Childrens Directorate Costs,Support Services,
01/08/2016,4690821,"5,572.53",Royal Mail (Direct Debit only),201705,Communities,Supplies & Services,
01/08/2016,4690822,"1,318.26",Royal Mail (Direct Debit only),201705,Communities,Supplies & Services,
01/08/2016,4690823,"18,600.71",Royal Mail (Direct Debit only),201705,Communities,Supplies & Services,
01/08/2016,4690824,"1,865.39",Royal Mail (Direct Debit only),201705,Communities,Supplies & Services,
01/08/2016,4690825,"2,187.84",Royal Mail (Direct Debit only),201705,Communities,Supplies & Services,
01/08/2016,4690826,"1,879.42",Royal Mail (Direct Debit only),201705,Communities,Supplies & Services,
01/08/2016,4690828,"1,087.39",Royal Mail (Direct Debit only),201705,Communities,Supplies & Services,
01/09/2016,3838026,651.97,Royal Mail (Direct Debit only),201705,Communities,Supplies & Services,
23/08/2016,2141510,"1,033.33",Barrs Court Academy,201705,Central Childrens Directorate Costs,Support Services,
23/08/2016,2141511,"1,033.33",Barrs Court Academy,201705,Central Childrens Directorate Costs,Support Services,
23/08/2016,2141512,"1,033.33",Barrs Court Academy,201705,Central Childrens Directorate Costs,Support Services,
23/08/2016,2141513,"1,033.33",Barrs Court Academy,201705,Central Childrens Directorate Costs,Support Services,
23/08/2016,2141514,458.33,Barrs Court Academy,201705,Central Childrens Directorate Costs,Support Services,
23/08/2016,2141515,719.17,Barrs Court Academy,201705,Central Childrens Directorate Costs,Support Services,
23/08/2016,2141516,719.17,Barrs Court Academy,201705,Central Childrens Directorate Costs,Support Services,
23/08/2016,2141517,458.33,Barrs Court Academy,201705,Central Childrens Directorate Costs,Support Services,
23/08/2016,2141518,719.17,Barrs Court Academy,201705,Central Childrens Directorate Costs,Support Services,
23/08/2016,2141519,"1,033.33",Barrs Court Academy,201705,Central Childrens Directorate Costs,Support Services,
23/08/2016,2141520,"1,033.33",Barrs Court Academy,201705,Central Childrens Directorate Costs,Support Services,
23/08/2016,2141521,719.17,Barrs Court Academy,201705,Central Childrens Directorate Costs,Support Services,
23/08/2016,2141522,"1,033.33",Barrs Court Academy,201705,Central Childrens Directorate Costs,Support Services,
23/08/2016,2141523,458.33,Barrs Court Academy,201705,Central Childrens Directorate Costs,Support Services,
23/08/2016,2141524,"1,399.17",Barrs Court Academy,201705,Central Childrens Directorate Costs,Support Services,
23/08/2016,2141525,719.17,Barrs Court Academy,201705,Central Childrens Directorate Costs,Support Services,
23/08/2016,2141526,719.17,Barrs Court Academy,201705,Central Childrens Directorate Costs,Support Services,
23/08/2016,2141527,"1,033.33",Barrs Court Academy,201705,Central Childrens Directorate Costs,Support Services,
23/08/2016,2141528,719.17,Barrs Court Academy,201705,Central Childrens Directorate Costs,Support Services,
23/08/2016,2141529,719.17,Barrs Court Academy,201705,Central Childrens Directorate Costs,Support Services,
23/08/2016,2141530,458.33,Barrs Court Academy,201705,Central Childrens Directorate Costs,Support Services,
23/08/2016,2141531,"1,033.33",Barrs Court Academy,201705,Central Childrens Directorate Costs,Support Services,
23/08/2016,2141532,"1,033.33",Barrs Court Academy,201705,Central Childrens Directorate Costs,Support Services,
23/08/2016,2141533,719.17,Barrs Court Academy,201705,Central Childrens Directorate Costs,Support Services,
23/08/2016,2141534,719.17,Barrs Court Academy,201705,Central Childrens Directorate Costs,Support Services,
23/08/2016,2141535,"1,033.33",Barrs Court Academy,201705,Central Childrens Directorate Costs,Support Services,
23/08/2016,2141536,"1,033.33",Barrs Court Academy,201705,Central Childrens Directorate Costs,Support Services,
23/08/2016,2141537,719.17,Barrs Court Academy,201705,Central Childrens Directorate Costs,Support Services,
23/08/2016,2141538,"1,399.17",Barrs Court Academy,201705,Central Childrens Directorate Costs,Support Services,
23/08/2016,2141539,"1,033.33",Barrs Court Academy,201705,Central Childrens Directorate Costs,Support Services,
23/08/2016,2141540,"1,033.33",Barrs Court Academy,201705,Central Childrens Directorate Costs,Support Services,
23/08/2016,2141541,458.33,Barrs Court Academy,201705,Central Childrens Directorate Costs,Support Services,
23/08/2016,2141542,719.17,Barrs Court Academy,201705,Central Childrens Directorate Costs,Support Services,
23/08/2016,2141543,458.33,Barrs Court Academy,201705,Central Childrens Directorate Costs,Support Services,
23/08/2016,2141544,"1,033.33",Barrs Court Academy,201705,Central Childrens Directorate Costs,Support Services,
23/08/2016,2141545,458.33,Barrs Court Academy,201705,Central Childrens Directorate Costs,Support Services,
23/08/2016,2141546,458.33,Barrs Court Academy,201705,Central Childrens Directorate Costs,Support Services,
23/08/2016,2141547,719.17,Barrs Court Academy,201705,Central Childrens Directorate Costs,Support Services,
23/08/2016,2141548,719.17,Barrs Court Academy,201705,Central Childrens Directorate Costs,Support Services,
23/08/2016,2141549,719.17,Barrs Court Academy,201705,Central Childrens Directorate Costs,Support Services,
23/08/2016,2141550,"1,033.33",Barrs Court Academy,201705,Central Childrens Directorate Costs,Support Services,
23/08/2016,2141551,"1,033.33",Barrs Court Academy,201705,Central Childrens Directorate Costs,Support Services,
23/08/2016,2141552,"1,399.17",Barrs Court Academy,201705,Central Childrens Directorate Costs,Support Services,
23/08/2016,2141553,"1,399.17",Barrs Court Academy,201705,Central Childrens Directorate Costs,Support Services,
23/08/2016,2141554,719.17,Barrs Court Academy,201705,Central Childrens Directorate Costs,Support Services,
23/08/2016,2141555,719.17,Barrs Court Academy,201705,Central Childrens Directorate Costs,Support Services,
23/08/2016,2141556,719.17,Barrs Court Academy,201705,Central Childrens Directorate Costs,Support Services,
23/08/2016,2141557,719.17,Barrs Court Academy,201705,Central Childrens Directorate Costs,Support Services,
23/08/2016,2141558,719.17,Barrs Court Academy,201705,Central Childrens Directorate Costs,Support Services,
23/08/2016,2141559,719.17,Barrs Court Academy,201705,Central Childrens Directorate Costs,Support Services,
23/08/2016,2141560,"1,033.33",Barrs Court Academy,201705,Central Childrens Directorate Costs,Support Services,
23/08/2016,2141561,719.17,Barrs Court Academy,201705,Central Childrens Directorate Costs,Support Services,
23/08/2016,2141562,458.33,Barrs Court Academy,201705,Central Childrens Directorate Costs,Support Services,
23/08/2016,2141563,719.17,Barrs Court Academy,201705,Central Childrens Directorate Costs,Support Services,
23/08/2016,2141564,719.17,Barrs Court Academy,201705,Central Childrens Directorate Costs,Support Services,
23/08/2016,2141565,"1,033.33",Barrs Court Academy,201705,Central Childrens Directorate Costs,Support Services,
23/08/2016,2141566,"1,033.33",Barrs Court Academy,201705,Central Childrens Directorate Costs,Support Services,
23/08/2016,2141567,"1,033.33",Barrs Court Academy,201705,Central Childrens Directorate Costs,Support Services,
23/08/2016,2141568,"1,033.33",Barrs Court Academy,201705,Central Childrens Directorate Costs,Support Services,
23/08/2016,2141569,"1,399.17",Barrs Court Academy,201705,Central Childrens Directorate Costs,Support Services,
23/08/2016,2141570,"1,033.33",Barrs Court Academy,201705,Central Childrens Directorate Costs,Support Services,
23/08/2016,2141571,"1,033.33",Barrs Court Academy,201705,Central Childrens Directorate Costs,Support Services,
23/08/2016,2141572,"1,399.17",Barrs Court Academy,201705,Central Childrens Directorate Costs,Support Services,
23/08/2016,2141573,"1,033.33",Barrs Court Academy,201705,Central Childrens Directorate Costs,Support Services,
23/08/2016,2141574,719.17,Barrs Court Academy,201705,Central Childrens Directorate Costs,Support Services,
23/08/2016,2141575,719.17,Barrs Court Academy,201705,Central Childrens Directorate Costs,Support Services,
23/08/2016,2141576,719.17,Barrs Court Academy,201705,Central Childrens Directorate Costs,Support Services,
23/08/2016,2141577,719.17,Barrs Court Academy,201705,Central Childrens Directorate Costs,Support Services,
23/08/2016,2141578,719.17,Barrs Court Academy,201705,Central Childrens Directorate Costs,Support Services,
23/08/2016,2141619,458.33,Barrs Court Academy,201705,Central Childrens Directorate Costs,Support Services,
23/08/2016,2141620,"1,033.33",Barrs Court Academy,201705,Central Childrens Directorate Costs,Support Services,
23/08/2016,2141621,"1,399.17",Barrs Court Academy,201705,Central Childrens Directorate Costs,Support Services,
23/08/2016,2141622,"1,033.33",Barrs Court Academy,201705,Central Childrens Directorate Costs,Support Services,
23/08/2016,2141623,"1,033.33",Barrs Court Academy,201705,Central Childrens Directorate Costs,Support Services,
23/08/2016,2141624,719.17,Barrs Court Academy,201705,Central Childrens Directorate Costs,Support Services,
23/08/2016,2141625,719.17,Barrs Court Academy,201705,Central Childrens Directorate Costs,Support Services,
23/08/2016,2141626,"1,033.33",Barrs Court Academy,201705,Central Childrens Directorate Costs,Support Services,
23/08/2016,2141627,458.33,Barrs Court Academy,201705,Central Childrens Directorate Costs,Support Services,
23/08/2016,2141628,458.33,Barrs Court Academy,201705,Central Childrens Directorate Costs,Support Services,
23/08/2016,2141629,458.33,Barrs Court Academy,201705,Central Childrens Directorate Costs,Support Services,
23/08/2016,2141630,458.33,Barrs Court Academy,201705,Central Childrens Directorate Costs,Support Services,
23/08/2016,2141631,"1,033.33",Barrs Court Academy,201705,Central Childrens Directorate Costs,Support Services,
23/08/2016,2141632,"1,399.17",Barrs Court Academy,201705,Central Childrens Directorate Costs,Support Services,
23/08/2016,2141633,"1,033.33",Barrs Court Academy,201705,Central Childrens Directorate Costs,Support Services,
23/08/2016,2141643,719.17,Barrs Court Academy,201705,Central Childrens Directorate Costs,Support Services,
23/08/2016,2141644,458.33,Barrs Court Academy,201705,Central Childrens Directorate Costs,Support Services,
23/08/2016,2141645,719.17,Barrs Court Academy,201705,Central Childrens Directorate Costs,Support Services,
23/08/2016,2141646,719.17,Barrs Court Academy,201705,Central Childrens Directorate Costs,Support Services,
23/08/2016,2141653,458.33,Barrs Court Academy,201705,Central Childrens Directorate Costs,Support Services,
23/08/2016,2141665,"1,033.33",Barrs Court Academy,201705,Central Childrens Directorate Costs,Support Services,
23/08/2016,2141680,458.33,Barrs Court Academy,201705,Central Childrens Directorate Costs,Support Services,
23/08/2016,2141681,458.33,Barrs Court Academy,201705,Central Childrens Directorate Costs,Support Services,
23/08/2016,2141682,458.33,Barrs Court Academy,201705,Central Childrens Directorate Costs,Support Services,
23/08/2016,2141683,"1,033.33",Barrs Court Academy,201705,Central Childrens Directorate Costs,Support Services,
23/08/2016,2141688,458.33,Barrs Court Academy,201705,Central Childrens Directorate Costs,Support Services,
23/08/2016,2141690,"1,033.33",Barrs Court Academy,201705,Central Childrens Directorate Costs,Support Services,
23/08/2016,2141691,458.33,Barrs Court Academy,201705,Central Childrens Directorate Costs,Support Services,
23/08/2016,2141692,"1,033.33",Barrs Court Academy,201705,Central Childrens Directorate Costs,Support Services,
23/08/2016,2141697,458.33,Barrs Court Academy,201705,Central Childrens Directorate Costs,Support Services,
23/08/2016,2141702,458.33,Barrs Court Academy,201705,Central Childrens Directorate Costs,Support Services,
23/08/2016,2141703,458.33,Barrs Court Academy,201705,Central Childrens Directorate Costs,Support Services,
23/08/2016,2141704,719.17,Barrs Court Academy,201705,Central Childrens Directorate Costs,Support Services,
23/08/2016,2141705,458.33,Barrs Court Academy,201705,Central Childrens Directorate Costs,Support Services,
23/08/2016,2141706,458.33,Barrs Court Academy,201705,Central Childrens Directorate Costs,Support Services,
23/08/2016,2141758,458.33,Barrs Court Academy,201705,Central Childrens Directorate Costs,Support Services,
23/08/2016,2141763,719.17,Barrs Court Academy,201705,Central Childrens Directorate Costs,Support Services,
23/08/2016,2141775,"1,033.33",Barrs Court Academy,201705,Central Childrens Directorate Costs,Support Services,
23/08/2016,2141777,458.33,Barrs Court Academy,201705,Central Childrens Directorate Costs,Support Services,
23/08/2016,2141778,"1,033.33",Barrs Court Academy,201705,Central Childrens Directorate Costs,Support Services,
23/08/2016,2141779,719.17,Barrs Court Academy,201705,Central Childrens Directorate Costs,Support Services,
25/08/2016,3838387,711.33,ParentPay Limited,201705,Schools,Supplies & Services,
17/08/2016,3837679,"13,750.00",TomHead Limited,201705,Resources,Premises-Related Expenditure,
17/08/2016,3837647,456.5,H G Clewer Ltd,201705,Public Health,Supplies & Services,
24/08/2016,3838207,"1,095.20",H G Clewer Ltd,201705,Public Health,Supplies & Services,
03/08/2016,3836513,425,SLS School Improvement Ltd,201705,Schools,Supplies & Services,
03/08/2016,4691498,450,SLS School Improvement Ltd,201705,Schools,Supplies & Services,
03/08/2016,3835735,"2,500.00",Calon Solutions Limited,201705,Schools,Supplies & Services,
17/08/2016,3837919,900,Dolphin Lifts Midlands Ltd,201705,Housing & Independent Living Capital,Capital Expenditure,
31/08/2016,3838714,942,Dolphin Lifts Midlands Ltd,201705,Housing & Independent Living Capital,Capital Expenditure,
05/08/2016,4691722,"3,775.00",Anglia Stairlifts Ltd,201705,Housing & Independent Living Capital,Capital Expenditure,
10/08/2016,3837232,"1,800.00",Real Training,201705,Schools,Support Services,
01/08/2016,4691544,902.5,REDACTED,201705,Environment and Place,Supplies & Services,
15/08/2016,3837768,902.5,REDACTED,201705,Environment and Place,Supplies & Services,
05/08/2016,4691720,"3,025.00",The Mobility Equipment Company,201705,Housing & Independent Living Capital,Capital Expenditure,
31/08/2016,3838663,432.75,Cinderford Artspace Ltd,201705,Environment and Place,Supplies & Services,
31/08/2016,3838751,"6,222.28",Cinderford Artspace Ltd,201705,Environment and Place,Supplies & Services,
11/08/2016,3837529,"2,021,381.59",Balfour Beatty Living Places Ltd,201705,Holding Codes,Holding Codes,
03/08/2016,3836819,"7,210.00",NEPRO Limited,201705,Environment and Place,Premises-Related Expenditure,
03/08/2016,3836820,"6,695.00",NEPRO Limited,201705,Environment and Place,Premises-Related Expenditure,
25/08/2016,3838410,"3,420.00",NEPRO Limited,201705,Environment and Place,Supplies & Services,
17/08/2016,3837483,"10,395.00",NEPRO Limited,201705,Environment and Place,Third Party Payments,
17/08/2016,3837484,"5,917.50",NEPRO Limited,201705,Environment and Place,Third Party Payments,
05/08/2016,3836790,"7,210.00",NEPRO Limited,201705,Growth,Premises-Related Expenditure,
05/08/2016,3836792,"6,695.00",NEPRO Limited,201705,Growth,Premises-Related Expenditure,
03/08/2016,3836490,"22,252.00",NEPRO Limited,201705,Growth,Third Party Payments,
19/08/2016,3837920,"2,540.00",Eclipse Access Solutions Ltd,201705,Housing & Independent Living Capital,Capital Expenditure,
19/08/2016,3837813,"7,321.75",Wessex Lift Co Ltd,201705,Housing & Independent Living Capital,Capital Expenditure,
17/08/2016,3837830,862.5,HCT Construction Consultants Ltd,201705,Growth,Supplies & Services,
25/08/2016,3838396,"16,605.00",NHS Herefordshire CCG,201705,Director and Management,Third Party Payments,
05/08/2016,3837111,"15,800.00",NHS Herefordshire CCG,201705,Physical Disabilities,Third Party Payments,
10/08/2016,3837194,"8,190.20",Smart Distribution Solutions Ltd,201705,Communities,Supplies & Services,
10/08/2016,3836931,"1,200.00",Phillips & Leslie Education Consultants,201705,Schools,Supplies & Services,
23/08/2016,2141479,458.33,Mordiford Church of England Primary School,201705,Central Childrens Directorate Costs,Support Services,
23/08/2016,2141725,458.33,Mordiford Church of England Primary School,201705,Central Childrens Directorate Costs,Support Services,
17/08/2016,3837587,428.4,The Nationwide Community Learning Partnership (NCLP),201705,Education and Commissioning,Supplies & Services,
17/08/2016,3837611,"12,617.21",The Nationwide Community Learning Partnership (NCLP),201705,Education and Commissioning,Supplies & Services,
31/08/2016,3838489,"36,875.00",REDACTED,201705,Resources,Premises-Related Expenditure,
23/08/2016,2141482,458.33,St Thomas Cantilupe CE Academy,201705,Central Childrens Directorate Costs,Support Services,
23/08/2016,2141671,458.33,St Thomas Cantilupe CE Academy,201705,Central Childrens Directorate Costs,Support Services,
23/08/2016,2141744,458.33,St Thomas Cantilupe CE Academy,201705,Central Childrens Directorate Costs,Support Services,
23/08/2016,2141798,458.33,St Thomas Cantilupe CE Academy,201705,Central Childrens Directorate Costs,Support Services,
23/08/2016,2141809,458.33,St Thomas Cantilupe CE Academy,201705,Central Childrens Directorate Costs,Support Services,
03/08/2016,3836783,807.19,Serve (DHET) LtD,201705,Schools,Supplies & Services,
19/08/2016,3837820,"2,100.00",HMCTS,201705,Environment and Place,Supplies & Services,
23/08/2016,2141796,719.17,Marden Primary Academy,201705,Central Childrens Directorate Costs,Support Services,
05/08/2016,3837094,651,Able 2 Occupational Therapy Services Limited,201705,Communities,Supplies & Services,
10/08/2016,3837166,631.5,Able 2 Occupational Therapy Services Limited,201705,Communities,Supplies & Services,
19/08/2016,3837903,"1,038.00",Able 2 Occupational Therapy Services Limited,201705,Communities,Supplies & Services,
03/08/2016,3836331,"3,135.00",M & J Travel,201705,Environment and Place,Transport-Related Expenditure,
05/08/2016,3836134,"7,581.00",REDACTED,201705,Environment and Place,Transport-Related Expenditure,
05/08/2016,3836135,"5,985.00",REDACTED,201705,Environment and Place,Transport-Related Expenditure,
17/08/2016,3837907,"2,250.00",The Law Society,201705,Communities,Employees,
10/08/2016,3837358,"1,600.00",The Law Society,201705,Communities,Supplies & Services,
10/08/2016,3837359,"1,600.00",The Law Society,201705,Communities,Supplies & Services,
31/08/2016,3838543,750,Ecoteric SDS Ltd,201705,Growth Capital,Capital Expenditure,
10/08/2016,3837247,"1,330.00",Learning Support Partnership Ltd,201705,Schools,Supplies & Services,
12/08/2016,3837201,"1,350.52",TRP7 Ltd (The Ramp People),201705,Communities,Supplies & Services,
23/08/2016,2141465,448,Ewyas Harold Primary School,201705,Children & Young People Capital,Capital Income,
31/08/2016,3838619,"1,050.00",Future Digital Footprint Ltd,201705,Schools,Supplies & Services,
10/08/2016,4691838,"4,333.43",REDACTED,201705,Environment and Place,Supplies & Services,
31/08/2016,3838527,"1,614.02",Rather Inventive Limited,201705,Environment and Place,Employees,
10/08/2016,3837208,"2,700.00",REDACTED,201705,Environment and Place,Supplies & Services,
19/08/2016,3837889,"1,857.80",Gloucestershire Care Services NHST,201705,Public Health,Third Party Payments,
23/08/2016,2141652,458.33,Fairfield High School (Academy),201705,Central Childrens Directorate Costs,Support Services,
23/08/2016,2141737,458.33,Fairfield High School (Academy),201705,Central Childrens Directorate Costs,Support Services,
23/08/2016,2141784,458.33,Fairfield High School (Academy),201705,Central Childrens Directorate Costs,Support Services,
10/08/2016,3836380,"4,510.00",Fairfield High School (Academy),201705,Education and Commissioning,Supplies & Services,
03/08/2016,4691489,700,REDACTED,201705,Schools,Supplies & Services,
03/08/2016,3836765,"3,103.25",Barton Hyett Associates Ltd,201705,Environment and Place,Third Party Payments,
31/08/2016,3838731,468,Simon's Taxis,201705,Environment and Place,Transport-Related Expenditure,
31/08/2016,3838730,425,Simon's Taxis,201705,Safeguarding and Family Support,Transport-Related Expenditure,
17/08/2016,3837815,"1,950.00",Creative Edge Design Ltd,201705,Communities Capital,Capital Expenditure,
23/08/2016,2141715,458.33,Robert Owen Academey,201705,Central Childrens Directorate Costs,Support Services,
17/08/2016,3837989,"15,319.20",HM Revenue & Customs,201705,Communities,Employees,
19/08/2016,3838162,"3,255.61",Level Access Bathrooms,201705,Housing & Independent Living Capital,Capital Expenditure,
19/08/2016,3838166,"2,481.17",Level Access Bathrooms,201705,Housing & Independent Living Capital,Capital Expenditure,
31/08/2016,3838728,"4,355.15",Level Access Bathrooms,201705,Housing & Independent Living Capital,Capital Expenditure,
03/08/2016,3837042,"16,659.00",Ategi Ltd,201705,Commissioning Adults,Third Party Payments,
10/08/2016,4691791,"54,980.71",Interserve FS (UK) Ltd,201705,Holding Codes,Holding Codes,
05/08/2016,4691742,"8,911.21",Brandon Trust,201705,Physical Disabilities,Third Party Payments,
05/08/2016,4691743,"11,970.92",Brandon Trust,201705,Physical Disabilities,Third Party Payments,
05/08/2016,4691744,"4,655.40",Brandon Trust,201705,Physical Disabilities,Third Party Payments,
19/08/2016,3838074,"35,022.87",Brandon Trust,201705,Physical Disabilities,Third Party Payments,
19/08/2016,3837979,"7,386.00",REDACTED,201705,Resources,Premises-Related Expenditure,
24/08/2016,3838342,"1,148.00",REDACTED,201705,Schools,Premises-Related Expenditure,
31/08/2016,3838556,"1,540.39",REDACTED,201705,Communities,Employees,
19/08/2016,3836973,"27,789.66",Portakabin Ltd,201705,Education and Commissioning,Premises-Related Expenditure,
25/08/2016,3838395,"3,575.00",Knowles Ltd,201705,Environment and Place,Supplies & Services,
23/08/2016,2141579,719.17,The Brookfield School (Academy),201705,Central Childrens Directorate Costs,Support Services,
23/08/2016,2141580,719.17,The Brookfield School (Academy),201705,Central Childrens Directorate Costs,Support Services,
23/08/2016,2141581,719.17,The Brookfield School (Academy),201705,Central Childrens Directorate Costs,Support Services,
23/08/2016,2141582,458.33,The Brookfield School (Academy),201705,Central Childrens Directorate Costs,Support Services,
23/08/2016,2141583,719.17,The Brookfield School (Academy),201705,Central Childrens Directorate Costs,Support Services,
23/08/2016,2141584,458.33,The Brookfield School (Academy),201705,Central Childrens Directorate Costs,Support Services,
23/08/2016,2141585,458.33,The Brookfield School (Academy),201705,Central Childrens Directorate Costs,Support Services,
23/08/2016,2141586,458.33,The Brookfield School (Academy),201705,Central Childrens Directorate Costs,Support Services,
23/08/2016,2141587,719.17,The Brookfield School (Academy),201705,Central Childrens Directorate Costs,Support Services,
23/08/2016,2141588,719.17,The Brookfield School (Academy),201705,Central Childrens Directorate Costs,Support Services,
23/08/2016,2141589,719.17,The Brookfield School (Academy),201705,Central Childrens Directorate Costs,Support Services,
23/08/2016,2141590,719.17,The Brookfield School (Academy),201705,Central Childrens Directorate Costs,Support Services,
23/08/2016,2141591,719.17,The Brookfield School (Academy),201705,Central Childrens Directorate Costs,Support Services,
23/08/2016,2141592,719.17,The Brookfield School (Academy),201705,Central Childrens Directorate Costs,Support Services,
23/08/2016,2141593,719.17,The Brookfield School (Academy),201705,Central Childrens Directorate Costs,Support Services,
23/08/2016,2141594,458.33,The Brookfield School (Academy),201705,Central Childrens Directorate Costs,Support Services,
23/08/2016,2141595,458.33,The Brookfield School (Academy),201705,Central Childrens Directorate Costs,Support Services,
23/08/2016,2141596,719.17,The Brookfield School (Academy),201705,Central Childrens Directorate Costs,Support Services,
23/08/2016,2141597,719.17,The Brookfield School (Academy),201705,Central Childrens Directorate Costs,Support Services,
23/08/2016,2141598,458.33,The Brookfield School (Academy),201705,Central Childrens Directorate Costs,Support Services,
23/08/2016,2141599,719.17,The Brookfield School (Academy),201705,Central Childrens Directorate Costs,Support Services,
23/08/2016,2141600,458.33,The Brookfield School (Academy),201705,Central Childrens Directorate Costs,Support Services,
23/08/2016,2141601,719.17,The Brookfield School (Academy),201705,Central Childrens Directorate Costs,Support Services,
23/08/2016,2141602,719.17,The Brookfield School (Academy),201705,Central Childrens Directorate Costs,Support Services,
23/08/2016,2141616,719.17,The Brookfield School (Academy),201705,Central Childrens Directorate Costs,Support Services,
23/08/2016,2141617,719.17,The Brookfield School (Academy),201705,Central Childrens Directorate Costs,Support Services,
23/08/2016,2141618,719.17,The Brookfield School (Academy),201705,Central Childrens Directorate Costs,Support Services,
23/08/2016,2141634,"2,141.67",The Brookfield School (Academy),201705,Central Childrens Directorate Costs,Support Services,
23/08/2016,2141638,458.33,The Brookfield School (Academy),201705,Central Childrens Directorate Costs,Support Services,
23/08/2016,2141639,458.33,The Brookfield School (Academy),201705,Central Childrens Directorate Costs,Support Services,
23/08/2016,2141641,458.33,The Brookfield School (Academy),201705,Central Childrens Directorate Costs,Support Services,
23/08/2016,2141655,719.17,The Brookfield School (Academy),201705,Central Childrens Directorate Costs,Support Services,
23/08/2016,2141656,719.17,The Brookfield School (Academy),201705,Central Childrens Directorate Costs,Support Services,
23/08/2016,2141657,458.33,The Brookfield School (Academy),201705,Central Childrens Directorate Costs,Support Services,
23/08/2016,2141658,458.33,The Brookfield School (Academy),201705,Central Childrens Directorate Costs,Support Services,
23/08/2016,2141659,719.17,The Brookfield School (Academy),201705,Central Childrens Directorate Costs,Support Services,
23/08/2016,2141660,458.33,The Brookfield School (Academy),201705,Central Childrens Directorate Costs,Support Services,
23/08/2016,2141661,719.17,The Brookfield School (Academy),201705,Central Childrens Directorate Costs,Support Services,
23/08/2016,2141670,719.17,The Brookfield School (Academy),201705,Central Childrens Directorate Costs,Support Services,
23/08/2016,2141685,458.33,The Brookfield School (Academy),201705,Central Childrens Directorate Costs,Support Services,
23/08/2016,2141698,458.33,The Brookfield School (Academy),201705,Central Childrens Directorate Costs,Support Services,
23/08/2016,2141699,458.33,The Brookfield School (Academy),201705,Central Childrens Directorate Costs,Support Services,
23/08/2016,2141713,458.33,The Brookfield School (Academy),201705,Central Childrens Directorate Costs,Support Services,
23/08/2016,2141714,458.33,The Brookfield School (Academy),201705,Central Childrens Directorate Costs,Support Services,
23/08/2016,2141717,458.33,The Brookfield School (Academy),201705,Central Childrens Directorate Costs,Support Services,
23/08/2016,2141728,458.33,The Brookfield School (Academy),201705,Central Childrens Directorate Costs,Support Services,
23/08/2016,2141729,458.33,The Brookfield School (Academy),201705,Central Childrens Directorate Costs,Support Services,
23/08/2016,2141738,458.33,The Brookfield School (Academy),201705,Central Childrens Directorate Costs,Support Services,
23/08/2016,2141739,458.33,The Brookfield School (Academy),201705,Central Childrens Directorate Costs,Support Services,
23/08/2016,2141741,458.33,The Brookfield School (Academy),201705,Central Childrens Directorate Costs,Support Services,
23/08/2016,2141747,"1,033.33",The Brookfield School (Academy),201705,Central Childrens Directorate Costs,Support Services,
23/08/2016,2141748,719.17,The Brookfield School (Academy),201705,Central Childrens Directorate Costs,Support Services,
23/08/2016,2141749,719.17,The Brookfield School (Academy),201705,Central Childrens Directorate Costs,Support Services,
23/08/2016,2141750,719.17,The Brookfield School (Academy),201705,Central Childrens Directorate Costs,Support Services,
23/08/2016,2141751,719.17,The Brookfield School (Academy),201705,Central Childrens Directorate Costs,Support Services,
23/08/2016,2141752,719.17,The Brookfield School (Academy),201705,Central Childrens Directorate Costs,Support Services,
23/08/2016,2141753,719.17,The Brookfield School (Academy),201705,Central Childrens Directorate Costs,Support Services,
23/08/2016,2141754,719.17,The Brookfield School (Academy),201705,Central Childrens Directorate Costs,Support Services,
23/08/2016,2141755,719.17,The Brookfield School (Academy),201705,Central Childrens Directorate Costs,Support Services,
23/08/2016,2141756,719.17,The Brookfield School (Academy),201705,Central Childrens Directorate Costs,Support Services,
23/08/2016,2141760,458.33,The Brookfield School (Academy),201705,Central Childrens Directorate Costs,Support Services,
23/08/2016,2141764,458.33,The Brookfield School (Academy),201705,Central Childrens Directorate Costs,Support Services,
23/08/2016,2141765,"1,399.17",The Brookfield School (Academy),201705,Central Childrens Directorate Costs,Support Services,
23/08/2016,2141768,458.33,The Brookfield School (Academy),201705,Central Childrens Directorate Costs,Support Services,
23/08/2016,2141772,458.33,The Brookfield School (Academy),201705,Central Childrens Directorate Costs,Support Services,
23/08/2016,2141773,458.33,The Brookfield School (Academy),201705,Central Childrens Directorate Costs,Support Services,
23/08/2016,2141774,719.17,The Brookfield School (Academy),201705,Central Childrens Directorate Costs,Support Services,
23/08/2016,2141776,458.33,The Brookfield School (Academy),201705,Central Childrens Directorate Costs,Support Services,
23/08/2016,2141782,719.17,The Brookfield School (Academy),201705,Central Childrens Directorate Costs,Support Services,
23/08/2016,2141792,458.33,The Brookfield School (Academy),201705,Central Childrens Directorate Costs,Support Services,
23/08/2016,2141793,458.33,The Brookfield School (Academy),201705,Central Childrens Directorate Costs,Support Services,
23/08/2016,2141803,458.33,The Brookfield School (Academy),201705,Central Childrens Directorate Costs,Support Services,
23/08/2016,2141814,881.56,The Brookfield School (Academy),201705,Central Childrens Directorate Costs,Support Services,
23/08/2016,2141815,532.25,The Brookfield School (Academy),201705,Central Childrens Directorate Costs,Support Services,
03/08/2016,3836685,"1,855.00",REDACTED,201705,Environment and Place,Transport-Related Expenditure,
10/08/2016,3836914,"1,124.82",Twinkl Ltd,201705,Schools,Supplies & Services,
17/08/2016,3837831,800,Ecoteric Ltd,201705,Growth,Supplies & Services,
31/08/2016,3838544,"1,000.00",Ecoteric Ltd,201705,Growth,Supplies & Services,
03/08/2016,3836856,648,Key Stage Projects LTD,201705,Schools,Supplies & Services,
03/08/2016,3836481,"2,700.00",REDACTED,201705,Environment and Place,Supplies & Services,
05/08/2016,3836418,450,REDACTED,201705,Communities,Supplies & Services,
10/08/2016,4691787,"2,313.10",Cobalt Telephone Technologies Ltd,201705,Environment and Place,Premises-Related Expenditure,
19/08/2016,3837897,"1,612.21",Restore plc,201705,Communities,Supplies & Services,
25/08/2016,3838378,"6,163.20",Llangattock School Ltd,201705,Education and Commissioning,Third Party Payments,
24/08/2016,3838206,"2,209.17",St Paul's Hostel,201705,Growth,Transfer Payments,
03/08/2016,4691484,758.79,Riverside Primary School - HCC,201705,Central Childrens Directorate Costs,Support Services,
23/08/2016,2141470,794,Riverside Primary School - HCC,201705,Children & Young People Capital,Capital Income,
23/08/2016,2141447,"1,137.00",Earl Mortimer College & Sixth Form HCC,201705,Children & Young People Capital,Capital Income,
03/08/2016,3836204,"1,818.18",Participation People,201705,Public Health,Supplies & Services,
17/08/2016,3837808,"17,362.50",Taurus Healthcare,201705,Public Health,Supplies & Services,
17/08/2016,3837836,"1,500.00",L F Refridgeration Air Conditioning,201705,Schools Devolved Capital,Capital Expenditure,
08/08/2016,2143257,565,Benefits Immediate Payments,201705,Corporate,Transfer Payments,
24/08/2016,3838221,"20,000.00",Herefordshire Vennture-Hereford Family Pastors,201705,Education and Commissioning,Transfer Payments,
10/08/2016,3837436,"6,000.00",Highways England Company Ltd,201705,Commissioning Capital,Capital Expenditure,
10/08/2016,3836515,840,MP Education Services Ltd,201705,Schools,Supplies & Services,
17/08/2016,3837144,"63,161.30",European Electronique Limited,201705,Resources,Supplies & Services,
17/08/2016,3834043,"65,412.31",European Electronique Limited,201705,Resources Capital,Capital Expenditure,
17/08/2016,3834167,"27,016.56",European Electronique Limited,201705,Resources Capital,Capital Expenditure,
17/08/2016,3834791,"28,731.24",European Electronique Limited,201705,Resources Capital,Capital Expenditure,
17/08/2016,3836245,"27,203.80",European Electronique Limited,201705,Resources Capital,Capital Expenditure,
10/08/2016,3837109,550,REDACTED,201705,Communities,Third Party Payments,
10/08/2016,3837238,"2,842.50",Active and Fun PE,201705,Schools,Supplies & Services,
03/08/2016,3836386,880,REDACTED,201705,Communities,Supplies & Services,
03/08/2016,3836644,"3,075.00",REDACTED,201705,Communities,Supplies & Services,
03/08/2016,3836645,425,REDACTED,201705,Communities,Supplies & Services,
12/08/2016,3837468,"1,470.00",REDACTED,201705,Communities,Supplies & Services,
12/08/2016,3837469,952.5,REDACTED,201705,Communities,Supplies & Services,
12/08/2016,3837470,550,REDACTED,201705,Communities,Supplies & Services,
31/08/2016,3838687,"1,425.00",REDACTED,201705,Communities,Supplies & Services,
03/08/2016,3836643,750,REDACTED,201705,Communities,Supplies & Services,
31/08/2016,3838689,"4,400.00",REDACTED,201705,Communities,Supplies & Services,
31/08/2016,3838549,"6,035.31",Tiller Research,201705,Public Health,Supplies & Services,
03/08/2016,3836596,505,One Team Logic Ltd,201705,Schools,Supplies & Services,
05/08/2016,3837099,"8,990.00",PJH Management Consulting Ltd,201705,Directors,Supplies & Services,
10/08/2016,3837455,"10,500.00",Nystart Limited,201705,Resources,Third Party Payments,
02/09/2016,3838783,840,The Plylimon Trust-Horizon Training,201705,Education and Commissioning,Support Services,
15/08/2016,2138859,"18,463.00",Hereford Integrated Behaviour Outreach Service,201705,Central Childrens Directorate Costs,Third Party Payments,
15/08/2016,2138860,"27,500.00",Hereford Integrated Behaviour Outreach Service,201705,Central Childrens Directorate Costs,Third Party Payments,
15/08/2016,2138857,"66,666.67",Hereford Integrated Behaviour Outreach Service,201705,Education and Commissioning,Third Party Payments,
15/08/2016,2138858,"1,500.00",Hereford Integrated Behaviour Outreach Service,201705,Education and Commissioning,Third Party Payments,
05/08/2016,3836502,942,The Albion Foundation,201705,Schools,Supplies & Services,
12/08/2016,3835706,"3,478.50",Planning and Management Ltd,201705,Growth,Third Party Payments,
31/08/2016,3838567,"10,913.00",Veale Wasbrough Visards,201705,Environment and Place,Supplies & Services,
31/08/2016,3838568,"12,429.00",Veale Wasbrough Visards,201705,Environment and Place,Supplies & Services,
31/08/2016,3838569,"2,500.00",Veale Wasbrough Visards,201705,Environment and Place,Supplies & Services,
16/08/2016,2138856,"147,313.06",Addaction,201705,Public Health,Third Party Payments,
12/08/2016,4691308,"5,383.21",Adept Telecom PLC,201705,Resources,Supplies & Services,
12/08/2016,4691324,"2,171.42",Adept Telecom PLC,201705,Resources,Supplies & Services,
19/08/2016,3837942,"2,024.56",Adept Telecom PLC,201705,Resources,Supplies & Services,
19/08/2016,3837946,"3,958.22",Adept Telecom PLC,201705,Resources,Supplies & Services,
12/08/2016,3836954,"2,900.00",J W Planning,201705,Environment and Place,Third Party Payments,
17/08/2016,3837745,546.06,REDACTED,201705,Mental Health,Supplies & Services,
03/08/2016,3836357,847.2,REDACTED,201705,Communities,Supplies & Services,
03/08/2016,3836672,"2,950.00",REDACTED,201705,Communities,Supplies & Services,
05/08/2016,4691690,960,Book Tokens Ltd,201705,Schools,Supplies & Services,
10/08/2016,3837176,744,Halliday James Ltd,201705,Transformation and safeguarding,Supplies & Services,
10/08/2016,3837178,634,Halliday James Ltd,201705,Transformation and safeguarding,Supplies & Services,
03/08/2016,4691635,"1,402.98",Leominster Sunrise Co-operative,201705,Schools,Premises-Related Expenditure,
05/08/2016,3836121,"3,275.20",Black Pepper (Ledbury) Ltd,201705,Schools,Supplies & Services,
05/08/2016,3836122,"1,168.40",Black Pepper (Ledbury) Ltd,201705,Schools,Supplies & Services,
12/08/2016,3837128,"4,875.19",REDACTED,201705,Environment and Place,Supplies & Services,
03/08/2016,3836041,480,County Community Projects,201705,Mental Health,Supplies & Services,
25/08/2016,3838266,"14,372.64",AlienVault Inc,201705,Resources,Supplies & Services,
24/08/2016,3838088,950,Babcock training Limited (Education Services),201705,Schools,Employees,
31/08/2016,3838724,"5,920.98",Cotswold Transport Planning Ltd,201705,Children & Young People Capital,Capital Expenditure,
31/08/2016,3838725,"2,245.60",Cotswold Transport Planning Ltd,201705,Children & Young People Capital,Capital Expenditure,
31/08/2016,3838085,925,Enabling Technology Limited,201705,Adults Operations,Supplies & Services,
03/08/2016,3836225,"1,084.32",Euclid Limited,201705,Environment and Place,Third Party Payments,
17/08/2016,3837537,"1,095.12",Euclid Limited,201705,Environment and Place,Third Party Payments,
17/08/2016,3837789,"2,380.00",Hulse Yazdi Professional Services,201705,Communities,Supplies & Services,
17/08/2016,3837790,"1,330.00",Hulse Yazdi Professional Services,201705,Communities,Supplies & Services,
19/08/2016,3837793,"1,789.90",Hulse Yazdi Professional Services,201705,Communities,Supplies & Services,
17/08/2016,3836151,"1,350.00",Two Boiled Eggs Ltd,201705,Communities,Supplies & Services,
05/08/2016,3836492,"2,340.00",REDACTED,201705,Environment and Place,Supplies & Services,
17/08/2016,3837828,467.19,REDACTED,201705,Growth,Third Party Payments,
03/08/2016,3835444,"3,849.10",REDACTED,201705,Environment and Place,Third Party Payments,
24/08/2016,3837959,"1,906.45",REDACTED,201705,Environment and Place,Third Party Payments,
03/08/2016,3835323,639,Shakespeare Schools Foundation,201705,Schools,Supplies & Services,
19/08/2016,3837895,"4,796.25",Balfours With Berringtons,201705,Children & Young People Capital,Capital Expenditure,
05/08/2016,2137714,"19,137.94",Matrix SCM Ltd,201705,Adults Operations,Employees,
12/08/2016,2138394,"18,246.16",Matrix SCM Ltd,201705,Adults Operations,Employees,
19/08/2016,2141145,"12,715.05",Matrix SCM Ltd,201705,Adults Operations,Employees,
25/08/2016,2142583,"7,343.96",Matrix SCM Ltd,201705,Adults Operations,Employees,
19/08/2016,2141145,"1,467.63",Matrix SCM Ltd,201705,Commissioning Adults,Employees,
25/08/2016,2142583,"2,935.26",Matrix SCM Ltd,201705,Commissioning Adults,Employees,
05/08/2016,2137714,"2,718.38",Matrix SCM Ltd,201705,Communities,Employees,
19/08/2016,2141145,"3,506.24",Matrix SCM Ltd,201705,Communities,Employees,
05/08/2016,2137714,"8,933.14",Matrix SCM Ltd,201705,Education and Commissioning,Employees,
12/08/2016,2138394,"3,817.58",Matrix SCM Ltd,201705,Education and Commissioning,Employees,
19/08/2016,2141145,"7,997.88",Matrix SCM Ltd,201705,Education and Commissioning,Employees,
25/08/2016,2142583,"11,192.72",Matrix SCM Ltd,201705,Education and Commissioning,Employees,
25/08/2016,2142583,"2,654.40",Matrix SCM Ltd,201705,Mental Health,Employees,
05/08/2016,2137714,"23,613.39",Matrix SCM Ltd,201705,Safeguarding and Family Support,Employees,
12/08/2016,2138394,"13,761.99",Matrix SCM Ltd,201705,Safeguarding and Family Support,Employees,
19/08/2016,2141145,"25,970.48",Matrix SCM Ltd,201705,Safeguarding and Family Support,Employees,
25/08/2016,2142583,"23,972.33",Matrix SCM Ltd,201705,Safeguarding and Family Support,Employees,
24/08/2016,3838290,"4,622.93",Servelec Synergy Ltd,201705,Education and Commissioning,Supplies & Services,
25/08/2016,3838288,"68,318.00",Servelec Synergy Ltd,201705,Education and Commissioning,Supplies & Services,
10/08/2016,3837439,818,Gorsley Baptist Church,201705,Communities Capital,Capital Expenditure,
19/08/2016,3837952,"8,250.00",Brain In Hand Ltd,201705,Integrated Commissioning,Capital Expenditure,
25/08/2016,3838400,"1,080.00",REDACTED,201705,Communities,Supplies & Services,
11/08/2016,3837391,"17,020.00",Jadu Limited,201705,Resources,Supplies & Services,
19/08/2016,3837855,"8,679.70",Forster Ecospace Ltd,201705,Communities,Premises-Related Expenditure,
19/08/2016,3837856,430,Forster Ecospace Ltd,201705,Communities,Premises-Related Expenditure,
25/08/2016,3838401,"1,500.00",REDACTED,201705,Communities,Supplies & Services,
10/08/2016,3837263,"4,510.79",Attain Health Management Services,201705,Transformation and safeguarding,Supplies & Services,
12/08/2016,3837458,"6,330.00",Slyspirit,201705,Commissioning Capital,Capital Expenditure,
05/08/2016,3836536,"1,170.00",REDACTED,201705,Environment and Place,Supplies & Services,
05/08/2016,3836953,"2,394.00",Comfy Seating,201705,Environment and Place,Supplies & Services,
12/08/2016,3837107,"2,364.00",Comfy Seating,201705,Environment and Place,Supplies & Services,
17/08/2016,3837662,"3,000.00",Standing Stone Drawing Office Supplies Ltd,201705,Resources,Supplies & Services,
03/08/2016,4691639,560,REDACTED,201705,Education and Commissioning,Support Services,
10/08/2016,3837414,"3,364.00",Institute of Health Visiting,201705,Public Health,Supplies & Services,
17/08/2016,3837553,"2,392.00",Woodcraft Joinery Ltd,201705,Communities,Supplies & Services,
05/08/2016,4691725,656.88,Dortech Architectural Systems Ltd,201705,Schools,Premises-Related Expenditure,
10/08/2016,3837456,440,REDACTED,201705,Communities,Supplies & Services,
24/08/2016,3838284,"1,082.00",Pickfords Move Management Ltd,201705,Resources,Premises-Related Expenditure,
17/08/2016,3837597,"6,762.50",REDACTED,201705,Growth,Third Party Payments,
19/08/2016,3837896,664.85,Absolute Organisation Limited,201705,Director and Management,Third Party Payments,
19/08/2016,3837894,535,Christ Church C of E Primary School (Cheltenham),201705,Education and Commissioning,Support Services,
31/08/2016,3838585,840,The Wilkes Parnership Solicitors,201705,Communities,Supplies & Services,
02/09/2016,3838808,"1,950.00",The Wilkes Parnership Solicitors,201705,Communities,Supplies & Services,
02/09/2016,3838809,"1,514.64",The Wilkes Parnership Solicitors,201705,Communities,Supplies & Services,
24/08/2016,3838048,500,A Rule of Tum Burger Shop Ltd,201705,Growth,Transfer Payments,
31/08/2016,3838529,"1,600.00",Newsco Insider Ltd,201705,Growth,Supplies & Services,
19/08/2016,3838168,625,Smart Insolvency Solutions Ltd,201705,Resources,Supplies & Services,
31/08/2016,3838685,"1,000.00",REDACTED,201705,Environment and Place,Supplies & Services,
24/08/2016,3838304,"8,748.00",Zwick Testing Machines Ltd,201705,Communities Capital,Capital Expenditure,
25/08/2016,3838467,"9,740.00",REDACTED,201705,Schools Devolved Capital,Capital Expenditure,
25/08/2016,3838508,"5,375.00",The Bridge Education Centre - Malvern Hills,201705,Central Childrens Directorate Costs,Support Services,
31/08/2016,3838626,"1,120.00",REDACTED,201705,Adults Operations,Employees,
22/08/2016,2142049,500.36,West Mercia Energy,201705,Environment and Place,Premises-Related Expenditure,Energy Costs
22/08/2016,2142057,"30,236.47",West Mercia Energy,201705,Environment and Place,Premises-Related Expenditure,Energy Costs
22/08/2016,2142058,"25,690.88",West Mercia Energy,201705,Environment and Place,Premises-Related Expenditure,Energy Costs
22/08/2016,2142059,"23,456.76",West Mercia Energy,201705,Environment and Place,Premises-Related Expenditure,Energy Costs
22/08/2016,2142060,"26,770.36",West Mercia Energy,201705,Environment and Place,Premises-Related Expenditure,Energy Costs
22/08/2016,2142061,"27,988.46",West Mercia Energy,201705,Environment and Place,Premises-Related Expenditure,Energy Costs
22/08/2016,2142062,"32,059.05",West Mercia Energy,201705,Environment and Place,Premises-Related Expenditure,Energy Costs
22/08/2016,2142063,"31,793.31",West Mercia Energy,201705,Environment and Place,Premises-Related Expenditure,Energy Costs
22/08/2016,2142064,"29,961.74",West Mercia Energy,201705,Environment and Place,Premises-Related Expenditure,Energy Costs
22/08/2016,2142065,"28,174.34",West Mercia Energy,201705,Environment and Place,Premises-Related Expenditure,Energy Costs
22/08/2016,2142066,"22,163.07",West Mercia Energy,201705,Environment and Place,Premises-Related Expenditure,Energy Costs
22/08/2016,2142067,"20,195.54",West Mercia Energy,201705,Environment and Place,Premises-Related Expenditure,Energy Costs
22/08/2016,2142068,"37,115.19",West Mercia Energy,201705,Environment and Place,Premises-Related Expenditure,Energy Costs
22/08/2016,2142113,"1,736.20",West Mercia Energy,201705,Environment and Place,Premises-Related Expenditure,Energy Costs
22/08/2016,2142132,499.41,West Mercia Energy,201705,Environment and Place,Premises-Related Expenditure,Energy Costs
22/08/2016,2142203,973.62,West Mercia Energy,201705,Environment and Place,Premises-Related Expenditure,Energy Costs
22/08/2016,2142207,556.31,West Mercia Energy,201705,Environment and Place,Premises-Related Expenditure,Energy Costs
22/08/2016,2142215,481.54,West Mercia Energy,201705,Environment and Place,Premises-Related Expenditure,Energy Costs
22/08/2016,2142243,632.07,West Mercia Energy,201705,Environment and Place,Premises-Related Expenditure,Energy Costs
22/08/2016,2142267,787.07,West Mercia Energy,201705,Environment and Place,Premises-Related Expenditure,Energy Costs
22/08/2016,2142302,742.26,West Mercia Energy,201705,Environment and Place,Premises-Related Expenditure,Energy Costs
22/08/2016,2142303,"1,804.11",West Mercia Energy,201705,Environment and Place,Premises-Related Expenditure,Energy Costs
22/08/2016,2142310,"1,836.06",West Mercia Energy,201705,Environment and Place,Premises-Related Expenditure,Energy Costs
22/08/2016,2142312,"1,804.53",West Mercia Energy,201705,Environment and Place,Premises-Related Expenditure,Energy Costs
22/08/2016,2142319,811.21,West Mercia Energy,201705,Environment and Place,Premises-Related Expenditure,Energy Costs
22/08/2016,2142320,740.71,West Mercia Energy,201705,Environment and Place,Premises-Related Expenditure,Energy Costs
22/08/2016,2142321,"11,793.70",West Mercia Energy,201705,Environment and Place,Premises-Related Expenditure,Energy Costs
22/08/2016,2142323,983.76,West Mercia Energy,201705,Environment and Place,Premises-Related Expenditure,Energy Costs
22/08/2016,2142338,658.76,West Mercia Energy,201705,Environment and Place,Premises-Related Expenditure,Energy Costs
22/08/2016,2142340,732.6,West Mercia Energy,201705,Environment and Place,Premises-Related Expenditure,Energy Costs
22/08/2016,2142341,896.62,West Mercia Energy,201705,Environment and Place,Premises-Related Expenditure,Energy Costs
22/08/2016,2142342,555.62,West Mercia Energy,201705,Environment and Place,Premises-Related Expenditure,Energy Costs
22/08/2016,2142350,"1,171.51",West Mercia Energy,201705,Environment and Place,Premises-Related Expenditure,Energy Costs
22/08/2016,2142378,504.99,West Mercia Energy,201705,Environment and Place,Premises-Related Expenditure,Energy Costs
22/08/2016,2142382,570.05,West Mercia Energy,201705,Environment and Place,Premises-Related Expenditure,Energy Costs
22/08/2016,2142387,554.3,West Mercia Energy,201705,Environment and Place,Premises-Related Expenditure,Energy Costs
22/08/2016,2142440,635.83,West Mercia Energy,201705,Environment and Place,Premises-Related Expenditure,Energy Costs
22/08/2016,2142452,544.39,West Mercia Energy,201705,Environment and Place,Premises-Related Expenditure,Energy Costs
22/08/2016,2142464,867.71,West Mercia Energy,201705,Environment and Place,Premises-Related Expenditure,Energy Costs
22/08/2016,2142465,"12,212.05",West Mercia Energy,201705,Environment and Place,Premises-Related Expenditure,Energy Costs
22/08/2016,2142468,"1,106.49",West Mercia Energy,201705,Environment and Place,Premises-Related Expenditure,Energy Costs
22/08/2016,2142470,683.85,West Mercia Energy,201705,Environment and Place,Premises-Related Expenditure,Energy Costs
22/08/2016,2142504,"1,876.63",West Mercia Energy,201705,Environment and Place,Premises-Related Expenditure,Energy Costs
22/08/2016,2142526,"2,039.87",West Mercia Energy,201705,Environment and Place,Premises-Related Expenditure,Energy Costs
22/08/2016,2142040,445.79,West Mercia Energy,201705,Schools,Premises-Related Expenditure,Energy Costs
22/08/2016,2142048,"1,471.25",West Mercia Energy,201705,Schools,Premises-Related Expenditure,Energy Costs
22/08/2016,2142050,478.19,West Mercia Energy,201705,Schools,Premises-Related Expenditure,Energy Costs
22/08/2016,2142051,434.11,West Mercia Energy,201705,Schools,Premises-Related Expenditure,Energy Costs
22/08/2016,2142053,474.4,West Mercia Energy,201705,Schools,Premises-Related Expenditure,Energy Costs
22/08/2016,2142146,482.8,West Mercia Energy,201705,Schools,Premises-Related Expenditure,Energy Costs
22/08/2016,2142155,455.83,West Mercia Energy,201705,Schools,Premises-Related Expenditure,Energy Costs
22/08/2016,2142159,580.6,West Mercia Energy,201705,Schools,Premises-Related Expenditure,Energy Costs
22/08/2016,2142187,479.06,West Mercia Energy,201705,Schools,Premises-Related Expenditure,Energy Costs
22/08/2016,2142196,618.67,West Mercia Energy,201705,Schools,Premises-Related Expenditure,Energy Costs
22/08/2016,2142217,717.22,West Mercia Energy,201705,Schools,Premises-Related Expenditure,Energy Costs
22/08/2016,2142218,970.87,West Mercia Energy,201705,Schools,Premises-Related Expenditure,Energy Costs
22/08/2016,2142275,516.29,West Mercia Energy,201705,Schools,Premises-Related Expenditure,Energy Costs
22/08/2016,2142322,"1,137.87",West Mercia Energy,201705,Schools,Premises-Related Expenditure,Energy Costs
22/08/2016,2142324,964.4,West Mercia Energy,201705,Schools,Premises-Related Expenditure,Energy Costs
22/08/2016,2142325,948.31,West Mercia Energy,201705,Schools,Premises-Related Expenditure,Energy Costs
22/08/2016,2142326,891.19,West Mercia Energy,201705,Schools,Premises-Related Expenditure,Energy Costs
22/08/2016,2142327,919.39,West Mercia Energy,201705,Schools,Premises-Related Expenditure,Energy Costs
22/08/2016,2142367,573.18,West Mercia Energy,201705,Schools,Premises-Related Expenditure,Energy Costs
22/08/2016,2142368,947.83,West Mercia Energy,201705,Schools,Premises-Related Expenditure,Energy Costs
22/08/2016,2142376,451.51,West Mercia Energy,201705,Schools,Premises-Related Expenditure,Energy Costs
22/08/2016,2142391,576.32,West Mercia Energy,201705,Schools,Premises-Related Expenditure,Energy Costs
22/08/2016,2142397,461.81,West Mercia Energy,201705,Schools,Premises-Related Expenditure,Energy Costs
22/08/2016,2142426,568.06,West Mercia Energy,201705,Schools,Premises-Related Expenditure,Energy Costs
22/08/2016,2142466,"1,169.79",West Mercia Energy,201705,Schools,Premises-Related Expenditure,Energy Costs
22/08/2016,2142467,815.09,West Mercia Energy,201705,Schools,Premises-Related Expenditure,Energy Costs
22/08/2016,2142469,837.9,West Mercia Energy,201705,Schools,Premises-Related Expenditure,Energy Costs
22/08/2016,2142525,491.24,West Mercia Energy,201705,Schools,Premises-Related Expenditure,Energy Costs
03/08/2016,2135144,745.52,West Mercia Energy,201705,Schools,Supplies & Services,"Printing, Stationery & General Office Expenses"
03/08/2016,2135145,464.15,West Mercia Energy,201705,Schools,Supplies & Services,"Printing, Stationery & General Office Expenses"
04/08/2016,2135257,552.86,West Mercia Energy,201705,Schools,Supplies & Services,"Tools, Equipment, Furniture & Materials"
05/08/2016,3837080,"17,086.00",REDACTED,201705,Adults Operations,Supplies & Services,
15/08/2016,2138871,625,REDACTED,201705,Adults Operations,Premises-Related Expenditure,
25/08/2016,3837477,642.06,REDACTED,201705,Safeguarding and Family Support,Supplies & Services,
28/10/2016,3837779,"14,333.00",REDACTED,201705,Safeguarding and Family Support,Supplies & Services,
03/08/2016,3836580,"1,330.00",REDACTED,201705,Safeguarding and Family Support,Transport-Related Expenditure,
03/08/2016,3836584,"1,200.00",REDACTED,201705,Safeguarding and Family Support,Transport-Related Expenditure,
05/08/2016,3837097,"2,325.00",REDACTED,201705,Safeguarding and Family Support,Transport-Related Expenditure,
05/08/2016,3837098,480,REDACTED,201705,Safeguarding and Family Support,Transport-Related Expenditure,
10/08/2016,3837362,800,REDACTED,201705,Safeguarding and Family Support,Transport-Related Expenditure,
10/08/2016,3837363,980,REDACTED,201705,Safeguarding and Family Support,Transport-Related Expenditure,
31/08/2016,3838434,"1,260.00",REDACTED,201705,Safeguarding and Family Support,Transport-Related Expenditure,
31/08/2016,3838435,"1,820.00",REDACTED,201705,Safeguarding and Family Support,Transport-Related Expenditure,
16/08/2016,2133590,694,REDACTED,201705,Safeguarding and Family Support,Transport-Related Expenditure,
21/09/2016,2143256,659.8,REDACTED,201705,Safeguarding and Family Support,Transport-Related Expenditure,
10/08/2016,3837167,446.44,REDACTED,201705,Adults Operations,Supplies & Services,
02/09/2016,3838785,"7,130.00",REDACTED,201705,Safeguarding and Family Support,Supplies & Services,
12/08/2016,4691883,"2,192.14",REDACTED,201705,Safeguarding and Family Support,Third Party Payments,
16/05/2016,3837261,"14,333.00",REDACTED,201705,Safeguarding and Family Support,Supplies & Services,
16/09/2016,3838006,"14,333.00",REDACTED,201705,Safeguarding and Family Support,Supplies & Services,
24/08/2016,3838205,"1,140.00",REDACTED,201705,Adults Operations,Supplies & Services,
15/08/2016,2138875,420,REDACTED,201705,Adults Operations,Premises-Related Expenditure,
15/08/2016,2138873,"4,333.33",REDACTED,201705,Adults Operations,Premises-Related Expenditure,
15/08/2016,2138862,600,REDACTED,201705,Adults Operations,Premises-Related Expenditure,
15/08/2016,2138861,600,REDACTED,201705,Adults Operations,Premises-Related Expenditure,
26/08/2016,2138397,624,REDACTED,201705,Adults Operations,Supplies & Services,
26/08/2016,2143144,"1,268.00",REDACTED,201705,Adults Operations,Supplies & Services,
26/08/2016,2143145,"1,268.00",REDACTED,201705,Adults Operations,Supplies & Services,
26/08/2016,3838597,835.5,REDACTED,201705,Safeguarding and Family Support,Third Party Payments,
15/08/2016,2138867,550,REDACTED,201705,Adults Operations,Premises-Related Expenditure,
15/08/2016,2138868,480,REDACTED,201705,Adults Operations,Premises-Related Expenditure,
15/08/2016,2138869,475,REDACTED,201705,Adults Operations,Premises-Related Expenditure,
15/08/2016,2138863,450,REDACTED,201705,Adults Operations,Premises-Related Expenditure,
15/08/2016,2138864,450,REDACTED,201705,Adults Operations,Premises-Related Expenditure,
15/08/2016,2138874,650,REDACTED,201705,Adults Operations,Premises-Related Expenditure,
03/08/2016,3836883,"1,275.00",REDACTED,201705,Adults Operations,Supplies & Services,
05/08/2016,3837079,775,REDACTED,201705,Adults Operations,Supplies & Services,
10/08/2016,3837142,775,REDACTED,201705,Safeguarding and Family Support,Supplies & Services,
03/08/2016,4691513,680,REDACTED,201705,Adults Operations,Supplies & Services,
31/08/2016,2143310,433.33,REDACTED,201705,Safeguarding and Family Support,Supplies & Services,
12/08/2016,3837190,900,REDACTED,201705,Safeguarding and Family Support,Supplies & Services,
10/08/2016,4691824,"1,140.00",REDACTED,201705,Safeguarding and Family Support,Third Party Payments,
10/08/2016,4691825,"4,000.00",REDACTED,201705,Safeguarding and Family Support,Third Party Payments,
15/08/2016,2138866,460,REDACTED,201705,Adults Operations,Premises-Related Expenditure,
15/08/2016,2138876,600,REDACTED,201705,Adults Operations,Premises-Related Expenditure,
17/08/2016,3837586,"1,060.00",REDACTED,201705,Safeguarding and Family Support,Supplies & Services,
17/08/2016,3837654,"1,310.00",REDACTED,201705,Safeguarding and Family Support,Supplies & Services,
15/08/2016,2138877,525,REDACTED,201705,Adults Operations,Premises-Related Expenditure,
03/08/2016,3836825,505.6,REDACTED,201705,Safeguarding and Family Support,Supplies & Services,
12/08/2016,4691885,"9,379.72",REDACTED,201705,Safeguarding and Family Support,Third Party Payments,
10/08/2016,3837276,"6,144.25",REDACTED,201705,Adults Operations,Third Party Payments,
15/08/2016,2138878,625,REDACTED,201705,Adults Operations,Premises-Related Expenditure,
10/08/2016,4691826,"3,051.28",REDACTED,201705,Safeguarding and Family Support,Third Party Payments,
10/08/2016,4691827,"3,875.00",REDACTED,201705,Safeguarding and Family Support,Third Party Payments,
03/08/2016,3836624,900,REDACTED,201705,Adults Operations,Supplies & Services,
03/08/2016,3836625,"1,760.00",REDACTED,201705,Adults Operations,Supplies & Services,
19/08/2016,3837492,472,REDACTED,201705,Safeguarding and Family Support,Supplies & Services,
02/09/2016,3838487,462,REDACTED,201705,Safeguarding and Family Support,Supplies & Services,
10/08/2016,3837420,509.4,REDACTED,201705,Safeguarding and Family Support,Supplies & Services,
26/08/2016,2138879,500,REDACTED,201705,Adults Operations,Premises-Related Expenditure,
31/08/2016,2143312,433.33,REDACTED,201705,Safeguarding and Family Support,Supplies & Services,
05/08/2016,2137714,800.88,REDACTED,201705,Adults Operations,Employees,
12/08/2016,2138394,671.88,REDACTED,201705,Adults Operations,Employees,
19/08/2016,2141145,483.75,REDACTED,201705,Adults Operations,Employees,
25/08/2016,2142583,612.75,REDACTED,201705,Adults Operations,Employees,
05/08/2016,2137714,"3,360.69",REDACTED,201705,Safeguarding and Family Support,Employees,
19/08/2016,2141145,"6,402.66",REDACTED,201705,Safeguarding and Family Support,Employees,
25/08/2016,2142583,"1,621.74",REDACTED,201705,Safeguarding and Family Support,Employees,
03/08/2016,4691569,"1,674.90",REDACTED,201705,Adults Operations,Supplies & Services,
17/08/2016,3837754,"1,150.00",REDACTED,201705,Adults Operations,Supplies & Services,
31/08/2016,3838682,"1,388.00",REDACTED,201705,Adults Operations,Supplies & Services,
15/08/2016,2138880,600,REDACTED,201705,Adults Operations,Premises-Related Expenditure,
10/08/2016,4691785,"5,092.85",REDACTED,201705,Safeguarding and Family Support,Third Party Payments,
17/08/2016,3837782,"1,350.00",REDACTED,201705,Adults Operations,Supplies & Services,
10/08/2016,3836996,"1,438.80",REDACTED,201705,Safeguarding and Family Support,Supplies & Services,
10/08/2016,3837175,"2,102.30",REDACTED,201705,Safeguarding and Family Support,Supplies & Services,
17/08/2016,3837576,587.43,REDACTED,201705,Adults Operations,Premises-Related Expenditure,
10/08/2016,4691786,"2,598.96",REDACTED,201705,Safeguarding and Family Support,Third Party Payments,
05/08/2016,2137776,460.26,REDACTED,201705,Safeguarding and Family Support,Third Party Payments,
05/08/2016,2137777,460.26,REDACTED,201705,Safeguarding and Family Support,Third Party Payments,
05/08/2016,2137805,748.34,REDACTED,201705,Safeguarding and Family Support,Supplies & Services,
12/08/2016,2138946,559.5,REDACTED,201705,Safeguarding and Family Support,Third Party Payments,
12/08/2016,2138947,559.5,REDACTED,201705,Safeguarding and Family Support,Third Party Payments,
10/08/2016,2138072,442.86,REDACTED,201705,Safeguarding and Family Support,Supplies & Services,
19/08/2016,3837812,800,REDACTED,201705,Adults Operations,Premises-Related Expenditure,
17/08/2016,3837811,650,REDACTED,201705,Adults Operations,Premises-Related Expenditure,
12/08/2016,2138957,"2,591.00",REDACTED,201705,Safeguarding and Family Support,Supplies & Services,
17/08/2016,2140687,792.67,REDACTED,201705,Safeguarding and Family Support,Third Party Payments,
,,"11,802,105.66",,,,
